Workbook

Sheet hist. data
A1: Title: | B1: 10-Year Treasury Constant Maturity Rate | AH1: αβ= | AI1: =AI3*AI4 -> 0.03118914786 | AJ1: β/(α-1)= | AK1: 2.516502218e+48
A2: Series ID: | B2: GS10 | AH2: τ= | AI2: 1.421162333 | AJ2: τ= | AK2: 0.05263902835
A3: Source: | B3: Board of Governors of the Federal Reserve System | AE3: mean | AF3: =AF11*AF12 -> 0.03260616306 | AG3: =AG12/(AG11-1) -> 0.1332866743 | AH3: α = | AI3: 0.722036537 | AJ3: α = | AK3: 316.489741 | AN3: These are all based on best mix of a stand-alone
A4: Release: | B4: H.15 Selected Interest Rates | AE4: std dev | AF4: =AF12*AF11^0.5 -> 0.02969671753 | AG4: =AG3/(AG11-2)^0.5 ->  | AH4: β = | AI4: 0.04319607978 | AJ4: β = | AK4: 7.951291597e+45 | AM4: 0.9315512207 | AN4: best gen-gamma and best gen-inverse gamma
A5: Seasonal Adjustment: | B5: Not Applicable | R5: LOGNORMAL TO FIT VALUES | V5: VARIOUS DISTRIBUTIONS TO FIT NORMALIZED /LOGDELTA/ | AF5: from | AH5: rms error | AI5: 0.005365260883 | AJ5: rms error | AK5: 0.008514039241 | AL5: rms error | AM5: 0.005343106713
A6: Frequency: | B6: Monthly | AF6: data on
A7: Units: | B7: Percent | S7: from | T7: from | Z7: =(($X7-Y7)^2)/50 -> 0 | AD7: α = | AE7: =($AF$9/$AF$10)^2 -> 1.009921522 | AF7: normalized | AG7: =2+($AF$9/$AF$10)^2 -> 3.009921522 | AH7: this should pick up Weibull | AK7: and inv. Weibull
A8: Date Range: | B8: 1953-04 to 2013-05 | S8: LN(data) | T8: data | AD8: β = | AE8: =$AF$9/$AE$7 -> 0.03148462735 | AF8: abslogdelta | AG8: =$AF$9*($AG$7-1) -> 0.06390948019
A9: Last Updated: | B9: 2013-06-06 | R9: mean | S9: =EXP(S12+0.5*S13^2) -> 6.158529789 | T9: =B745 -> 6.138393352 | AB9: α= | AC9: 1 | AE9: mean | AF9: =$H745 -> 0.03179700277 | AH9: αβ= | AI9: =AI11*AI12 -> 0.006620593875 | AJ9: β/(α-1)= | AK9: =AK11*AK12 -> 0.04962424985
A10: Notes: | B10: Averages of business days. For further information regarding treasury | R10: std dev | S10: =S9*(EXP(S13^2)-1)^0.5 -> 2.956589865 | T10: =B747 -> 2.764837268 | X10: µ = | Y10: 0 | Z10: µ = | AA10: 0 | AB10: µ = | AC10: 0 | AE10: std dev | AF10: =$H747 -> 0.03164042957 | AH10: τ= | AI10: 3.289050742 | AJ10: τ= | AK10: 2.028132589 | AN10: These are based on the gen-gamma and | AU10: picks up the total low extreme probability … see counts
B11: constant maturity data, please refer to | X11: σ = | Y11: =F747 -> 0.04485717521 | Z11: σ = | AA11: 0.03552903993 | AB11: c= | AC11: 45.97183559 | AE11: α = | AF11: 1.205542418 | AG11: 1.149909843 | AH11: α = | AI11: 0.3343069192 | AJ11: α = | AK11: 1.255031978 | AN11: gen-inverse gamma within the best mixture
B12: http://www.federalreserve.gov/releases/h15/current/h15.pdf | R12: µ = | S12: =I754 -> 1.714137025 | T12: =LN(T9)-0.5*T13^2 -> 1.722205546 | AE12: β = | AF12: 0.02704688162 | AG12: 0.01998098436 | AH12: β = | AI12: 0.01980393912 | AJ12: β = | AK12: 0.03954022743 | AM12: 0.4471795623 | AY12: (for freqabs)
B13: http://federalreserve.gov/releases/h15/data.htm | Q13: HISTORICAL | R13: σ = | S13: =I747 -> 0.4554142149 | T13: =(LN((T10/T9)^2+1))^0.5 -> 0.4297848133 | X13: historical | Y13: mean | AA13: L2 | AC13: L2 | AE13: 0.006828836341 | AF13: L2 | AG13: L2 | AH13: 0.02514331698 | AI13: L2 | AK13: generalized | AM13: gen. gamma-inv.gamma | AS13: mean | AT13: L2 | AU13: L2 | AV13: L2 | AW13: L2 | AX13: L2 | AY13: L2
E14: NORMALIZED | H14: NORMALIZED | L14: SIXTH | M14: SIXTH MOMENT | O14: labels | Q14: DATA | S14: LOGNORMAL | V14: labels | X14: data | Y14: gaussian | Z14: rms error | AA14: gaussian | AB14: rms error | AC14: logistic | AD14: rms error | AE14: rms error | AF14: gamma | AG14: inv. gamma | AH14: rms error | AI14: gen. gamma | AJ14: rms error | AK14: inv. gamma | AL14: rms error | AM14: L2 mixture | AN14: rms error | AR14: HISTORICAL | AS14: GAUSSIAN | AT14: GAUSSIAN | AU14: digamma | AV14: dimixture | AW14: digengamma | AX14: logistic | AY14: gen-gamma
A15: DATE | B15: VALUE | C15: DELTA | D15: /DELTA/ | E15: /DELTA/ | F15: LOGDELTA | G15: /LOGDELTA/ | H15: /LOGDELTA/ | I15: LOG(VALUE/100) | J15: SIXTH MOMENT | K15: FOURTH MOMENT | L15: LOG MOMENT | M15: LOGDELTA | N15: bins | P15: count | U15: bins | W15: count | Z15: =SUM(Z16,Z18:Z67)^0.5 -> 0.009029291537 | AB15: =SUM(AB16,AB18:AB67)^0.5 -> 0.005968198405 | AD15: =SUM(AD16,AD18:AD67)^0.5 -> 0.005453619718 | AE15: =SUM(AE16,AE18:AE67)^0.5 -> 0.005574078117 | AH15: =SUM(AH16,AH18:AH67)^0.5 -> 0.0141205561 | AJ15: =SUM(AJ16,AJ18:AJ67)^0.5 -> 0.03908333208 | AL15: =SUM(AL16,AL18:AL67)^0.5 -> 0.03173249234 | AN15: =SUM(AN16,AN18:AN67)^0.5 -> 0.00464558105 | AO15: bins | AP15: labels | AQ15: counts | AR15: DATA
A16: 1953-04-15 | B16: 2.83 | I16: =LN(B16/100) -> -3.564893474 | J16: =($B16-$B$745)^6 -> 1311.302341 | K16: =($B16-$B$745)^4 -> 119.8032384 | L16: =($I16-$I$745)^6 -> 0.09363091697 | N16: 0 | P16: =FREQUENCY(B16:B737,N16:N66) -> 0 | S16: =LOGNORMDIST(N17,S$12,S$13)-LOGNORMDIST(1E-97,S$12,S$13) -> 4.950402324e-12 | U16: 0 | W16: =FREQUENCY(H17:H737,U16:U66) -> 0 | X16: =W17/721 -> 0.05825242718 | Y16: =2*( NORMDIST($U17,Y$10,Y$11,TRUE)-NORMDIST($U16,Y$10,Y$11,TRUE)) -> 0.04444504681 | Z16: =(0.5*($X16-Y16)^2)/50.5 -> 1.887561908e-06 | AA16: =2*( NORMDIST($U17,AA$10,AA$11,TRUE)-NORMDIST($U16,AA$10,AA$11,TRUE)) -> 0.05609683183 | AB16: =(0.5*($X16-AA16)^2)/50.5 -> 4.600585489e-08 | AC16: =2*(1/(1+EXP(-AC$11*$U17))-1/(1+EXP(-AC$11*U16))) -> 0.05740162446 | AD16: =(0.5*($X16-AC16)^2)/50.5 -> 7.166982957e-09 | AE16: =(0.5*($X16-AF16)^2)/50.5 -> 8.926500864e-07 | AF16: =(GAMMADIST(U17,AF11,AF12,TRUE) ) -> 0.0487572885 | AG16: =(1-GAMMADIST(1/U17,AG11,1/AG12,TRUE)) -> 0.0005031769676 | AH16: =(0.5*($X16-AG16)^2)/50.5 -> 3.301956337e-05 | AI16: =(GAMMADIST($U17^$AI$10,$AI$11,$AI$12^$AI$10,TRUE) ) -> 0.1150279392 | AJ16: =(0.5*($X16-AI16)^2)/50.5 -> 3.191543329e-05 | AK16: =(1-GAMMADIST((1/U17)^AK$10,AK$11,(1/AK$12)^AK$10,TRUE)) -> 0 | AL16: =(0.5*($X16-AK16)^2)/50.5 -> 3.359747795e-05 | AM16: =AM$12*AI16+(1-AM$12)*AK16 -> 0.05143814349 | AN16: =(0.5*($X16-AM16)^2)/50.5 -> 4.597471513e-07 | AO16: =$F$745-0.0025-0.19 -> -0.1930308692 | AP16: =$F$745-0.195 -> -0.1955308692 | AQ16: =FREQUENCY(F17:F737,AO16:AO93) -> 2 | AR16: =AQ16/721 -> 0.002773925104 | AS16: =NORMDIST(AO16,F$745,F$747,TRUE) -> 8.877580675e-06 | AT16: =NORMDIST(AO16,F$745,AA$11,TRUE) -> 3.011734672e-08 | AU16: =0.5*(1-GAMMADIST(ABS(AO16-$F$745),AF$11,AF$12,TRUE)) -> 0.000679492419 | AV16: =0.5*(1-AM$12*GAMMADIST(ABS(AO16-$F$745)^AI$10,AI$11,AI$12^AI$10,TRUE)-(1-AM$12)*( 1-GAMMADIST(ABS(1/(AO16-$F$745))^AK$10,AK$11,1/AK$12^AK$10,TRUE))) -> 0.004233262458 | AW16: =0.5*(1-GAMMADIST(ABS(AO16-$F$745)^AI$2,AI$3,AI$4^AI$2,TRUE)) -> 4.968416636e-05 | AX16: =1/(1+EXP(-$AC$11*(AO16-$F$745))) -> 0.0001434216331 | AY16: =(GAMMADIST($U17^$AI$2,$AI$3,$AI$4^$AI$2,TRUE) ) -> 0.05841439549
A17: =A16+30.4375 -> 1953-05-15T10:30:00 | B17: 3.05 | C17: =B17-B16 -> 0.22 | D17: =ABS(C17) -> 0.22 | E17: =ABS(C17-C$745) -> 0.2212482663 | F17: =LN(B17/B16) -> 0.07486487896 | G17: =ABS(F17) -> 0.07486487896 | H17: =ABS(F17-F$745) -> 0.07539574819 | I17: =LN(B17/100) -> -3.490028595 | J17: =(B17-$B$745)^6 -> 867.7520602 | K17: 90.97675363 | L17: 0.04618926718 | M17: =(F17-F$745)^6 -> 1.836881464e-07 | N17: 0.25 | O17: =0 -> 0 | P17: 0 | Q17: =2*P17/722 -> 0 | S17: =2*S16 -> 9.900804648e-12 | U17: 0.0025 | V17: =0 -> 0 | W17: 42 | X17: =2*X16 -> 0.1165048544 | Y17: =2*Y16 -> 0.08889009363 | AA17: =2*AA16 -> 0.1121936637 | AC17: =2*AC16 -> 0.1148032489 | AF17: =2*AF16 -> 0.09751457699 | AG17: =2*AG16 -> 0.001006353935 | AI17: =2*$AI16 -> 0.2300558784 | AK17: =2*AK16 -> 0 | AM17: =2*AM16 -> 0.102876287 | AO17: =AO16+0.005 -> -0.1880308692 | AP17: =AP16+0.005 -> -0.1905308692 | AQ17: 0 | AR17: =AQ17/721 -> 0 | AS17: =NORMDIST(AO17,F$745,F$747,TRUE)-NORMDIST(AO16,F$745,F$747,TRUE) -> 5.702150475e-06 | AT17: =NORMDIST(AO17,F$745,AA$11,TRUE)-NORMDIST(AO16,F$745,AA$11,TRUE) -> 3.540709677e-08 | AU17: =IF(AO17 <$F$745,0.5*(1-GAMMADIST(ABS(AO17-$F$745),AF$11,AF$12,TRUE))-0.5*(1-GAMMADIST(ABS(AO16-$F$745),AF$11,AF$12,TRUE)),0.5*(GAMMADIST(ABS(AO17-$F$745),AF$11,AF$12,TRUE))-0.5*( GAMMADIST(ABS(AO16-$F$745),AF$11,AF$12,TRUE))) -> 0.0001340720707 | AV17: =AM$12*(IF(AO17 <$F$745,0.5*(1-GAMMADIST(ABS(AO17-$F$745)^AI$10,AI$11,AI$12^AI$10,TRUE))-0.5*(1-GAMMADIST(ABS(AO16-$F$745)^AI$10,AI$11,AI$12^AI$10,TRUE)),0.5*(GAMMADIST(ABS(AO17-$F$745)^AI$10,AI$11,AI$12^AI$10,TRUE))-0.5*( GAMMADIST(ABS(AO16-$F$745)^AI$10,AI$11,AI$12^AI$10,TRUE))))+(1-AM$12)*(IF(AO17 <$F$745,0.5*(GAMMADIST(1/ABS(AO17-$F$745)^AK$10,AK$11,1/AK$12^AK$10,TRUE))-0.5*(GAMMADIST(1/ABS(AO16-$F$745)^AK$10,AK$11,1/AK$12^AK$10,TRUE)),0.5*((1-GAMMADIST(1/ABS(AO17-$F$745)^AK$10,AK$11,1/AK$12^AK$10,TRUE)))-0.5*( (1-GAMMADIST(1/ABS(AO16-$F$745)^AK$10,AK$11,1/AK$12^AK$10,TRUE))))) -> 0.0002877499575 | AW17: =IF(AO17 <$F$745,0.5*(1-GAMMADIST(ABS(AO17-$F$745)^AI$2,AI$3,AI$4^AI$2,TRUE))-0.5*(1-GAMMADIST(ABS(AO16-$F$745)^AI$2,AI$3,AI$4^AI$2,TRUE)),0.5*(GAMMADIST(ABS(AO17-$F$745)^AI$2,AI$3,AI$4^AI$2,TRUE))-0.5*( GAMMADIST(ABS(AO16-$F$745)^AI$2,AI$3,AI$4^AI$2,TRUE))) -> 1.848865538e-05 | AX17: =1/(1+EXP(-$AC$11*(AO17-$F$745)))-1/(1+EXP(-$AC$11*(AO16-$F$745))) -> 3.705672854e-05 | AY17: =2*$AY16 -> 0.116828791
A18: =A17+30.4375 -> 1953-06-14T21:00:00 | B18: 3.11 | C18: =B18-B17 -> 0.06 | D18: =ABS(C18) -> 0.06 | E18: 0.0612482663 | F18: =LN(B18/B17) -> 0.01948113557 | G18: =ABS(F18) -> 0.01948113557 | H18: 0.02001200479 | I18: -3.47054746 | J18: 771.3894674 | K18: 84.11029118 | L18: 0.0378778165 | M18: 6.423083819e-11 | N18: =N17+0.5 -> 0.75 | O18: =O17+0.5 -> 0.5 | P18: 0 | Q18: =P18/722 -> 0 | S18: =LOGNORMDIST(N18,S$12,S$13)-LOGNORMDIST(N17,S$12,S$13) -> 5.523333821e-06 | U18: =U17+0.005 -> 0.0075 | V18: =V17+0.005 -> 0.005 | W18: 81 | X18: =W18/721 -> 0.1123439667 | Y18: =2*( NORMDIST($U18,Y$10,Y$11,TRUE)-NORMDIST($U17,Y$10,Y$11,TRUE)) -> 0.08834016926 | Z18: =(($X18-Y18)^2)/50.5 -> 1.140955034e-05 | AA18: =2*( NORMDIST($U18,AA$10,AA$11,TRUE)-NORMDIST($U17,AA$10,AA$11,TRUE)) -> 0.1110899675 | AB18: =(($X18-AA18)^2)/50.5 -> 3.113889324e-08 | AC18: =2*(1/(1+EXP(-AC$11*U18))-1/(1+EXP(-AC$11*U17))) -> 0.1133049768 | AD18: =(($X18-AC18)^2)/50.5 -> 1.828793026e-08 | AE18: =(($X18-AF18)^2)/50.5 -> 5.045315115e-07 | AF18: =(GAMMADIST(U18,AF$11,AF$12,TRUE)-GAMMADIST(U17,AF$11,AF$12,TRUE)) -> 0.1173916237 | AG18: =(1-GAMMADIST(1/U18,AG$11,1/AG$12,TRUE))-(1-GAMMADIST(1/U17,AG$11,1/AG$12,TRUE)) -> 0.08984492861 | AH18: =(($X18-AG18)^2)/50.5 -> 1.002389536e-05 | AI18: =(GAMMADIST($U18^$AI$10,$AI$11,$AI$12^$AI$10,TRUE)-GAMMADIST($U17^$AI$10,$AI$11,$AI$12^$AI$10,TRUE)) -> 0.2661334375 | AJ18: =(($X18-AI18)^2)/50.5 -> 0.0004683406206 | AK18: =(1-GAMMADIST((1/U18)^AK$10,AK$11,(1/AK$12)^AK$10,TRUE))-(1-GAMMADIST((1/U17)^AK$10,AK$11,(1/AK$12)^AK$10,TRUE)) -> 5.908606937e-13 | AL18: =(($X18-AK18)^2)/50.5 -> 0.0002499240962 | AM18: =AM$12*AI18+(1-AM$12)*AK18 -> 0.1190094341 | AN18: =(($X18-AM18)^2)/50.5 -> 8.797713969e-07 | AO18: =AO17+0.005 -> -0.1830308692 | AP18: =AP17+0.005 -> -0.1855308692 | AQ18: 0 | AR18: 0 | AS18: 9.081857252e-06 | AT18: 7.432020883e-08 | AU18: 0.0001604139603 | AV18: 0.0003155636909 | AW18: 2.506916949e-05 | AX18: 4.66291284e-05 | AY18: =(GAMMADIST($U18^$AI$2,$AI$3,$AI$4^$AI$2,TRUE)-GAMMADIST($U17^$AI$2,$AI$3,$AI$4^$AI$2,TRUE)) -> 0.1170893494
A19: 1953-07-15T07:30:00 | B19: 2.93 | C19: -0.18 | D19: 0.18 | E19: 0.1787517337 | F19: =LN(B19/B18) -> -0.05962030316 | G19: 0.05962030316 | H19: 0.05908943394 | I19: -3.530167763 | J19: 1090.751067 | K19: 105.9620693 | L19: 0.06816382947 | M19: 4.256562136e-08 | N19: 1.25 | O19: 1 | P19: 0 | Q19: =P19/722 -> 0 | S19: =LOGNORMDIST(N19,S$12,S$13)-LOGNORMDIST(N18,S$12,S$13) -> 0.0005247943148 | U19: 0.0125 | V19: =V18+0.005 -> 0.01 | W19: 91 | X19: =W19/721 -> 0.1262135922 | Y19: =2*( NORMDIST($U19,Y$10,Y$11,TRUE)-NORMDIST($U18,Y$10,Y$11,TRUE)) -> 0.08671072496 | Z19: =(($X19-Y19)^2)/50.5 -> 3.090052521e-05 | AA19: =2*( NORMDIST(U19,AA$10,AA$11,TRUE)-NORMDIST(U18,AA$10,AA$11,TRUE)) -> 0.1078435978 | AB19: =(($X19-AA19)^2)/50.5 -> 6.682310813e-06 | AC19: =2*(1/(1+EXP(-AC$11*U19))-1/(1+EXP(-AC$11*U18))) -> 0.1089633406 | AD19: =(($X19-AC19)^2)/50.5 -> 5.892498624e-06 | AE19: =(($X19-AF19)^2)/50.5 -> 3.279662213e-06 | AF19: 0.1133441345 | AG19: 0.1578427156 | AH19: =(($X19-AG19)^2)/50.5 -> 1.980992958e-05 | AI19: =(GAMMADIST($U19^AI$10,AI$11,AI$12^AI$10,TRUE)-GAMMADIST($U18^AI$10,AI$11,AI$12^AI$10,TRUE)) -> 0.2590912905 | AJ19: =(($X19-AI19)^2)/50.5 -> 0.0003496333206 | AK19: 6.655378004e-05 | AL19: =(($X19-AK19)^2)/50.5 -> 0.0003151104022 | AM19: 0.1158971222 | AN19: =(($X19-AM19)^2)/50.5 -> 2.10751594e-06 | AO19: -0.1780308692 | AP19: -0.1805308692 | AQ19: 0 | AR19: 0 | AS19: 1.42863188e-05 | AT19: 1.529453125e-07 | AU19: 0.000191902535 | AV19: 0.0003468960467 | AW19: 3.387391481e-05 | AX19: 5.867297741e-05 | AY19: 0.1104096824
A20: 1953-08-14T18:00:00 | B20: 2.95 | C20: 0.02 | D20: 0.02 | E20: 0.0212482663 | F20: 0.006802747323 | G20: 0.006802747323 | H20: 0.007333616544 | I20: -3.523365016 | J20: 1050.58542 | K20: 103.3445503 | L20: 0.06392494494 | M20: 1.555640312e-13 | N20: 1.75 | O20: 1.5 | P20: 7 | Q20: 0.009695290859 | S20: 0.005090420585 | U20: 0.0175 | V20: 0.015 | W20: 63 | X20: 0.08737864078 | Y20: 0.08406149975 | Z20: 2.178895957e-07 | AA20: 0.1026424275 | AB20: 4.613528392e-06 | AC20: =2*(1/(1+EXP(-AC$11*U20))-1/(1+EXP(-AC$11*U19))) -> 0.102205602 | AD20: 4.35324314e-06 | AE20: 4.561766372e-06 | AF20: 0.102556559 | AG20: 0.1311801849 | AH20: 3.799158949e-05 | AI20: 0.2010235493 | AJ20: 0.0002557458462 | AK20: 0.009400322119 | AL20: 0.0001204082808 | AM20: 0.09509031297 | AN20: 1.177621545e-06 | AO20: -0.1730308692 | AP20: -0.1755308692 | AQ20: 0 | AR20: 0 | AS20: 2.219604899e-05 | AT20: 3.085873276e-07 | AU20: 0.0002295357248 | AV20: 0.0003823012807 | AW20: 4.560969729e-05 | AX20: 7.382562626e-05 | AY20: 0.1012754632
A21: 1953-09-14T04:30:00 | B21: 2.87 | C21: -0.08 | D21: 0.08 | E21: 0.0787517337 | F21: -0.02749314058 | G21: 0.02749314058 | H21: 0.02696227136 | I21: -3.550858156 | J21: 1219.006189 | K21: 114.1135651 | L21: 0.08252253849 | M21: 3.841836265e-10 | N21: 2.25 | O21: 2 | P21: 14 | Q21: 0.01939058172 | S21: 0.01804821254 | U21: 0.0225 | V21: 0.02 | W21: 60 | X21: 0.08321775312 | Y21: 0.08048800765 | Z21: 1.4755466e-07 | AA21: 0.09577948056 | AB21: 3.124692997e-06 | AC21: 0.0936474925 | AD21: 2.154048783e-06 | AE21: 1.04837667e-06 | AF21: 0.09049394868 | AG21: 0.09892838619 | AH21: 4.887603788e-06 | AI21: 0.1116308419 | AJ21: 1.598621021e-05 | AK21: 0.05904755538 | AL21: 1.156828632e-05 | AM21: 0.08256172644 | AN21: 8.522198181e-09 | AO21: -0.1680308692 | AP21: -0.1705308692 | AQ21: 0 | AR21: 0 | AS21: 3.405968966e-05 | AT21: 6.104255297e-07 | AU21: 0.0002745028699 | AV21: 0.0004224387775 | AW21: 6.119131061e-05 | AX21: 9.288835731e-05 | AY21: 0.09122290087
A22: 1953-10-14T15:00:00 | B22: 2.66 | C22: -0.21 | D22: 0.21 | E22: 0.2087517337 | F22: -0.07598590698 | G22: 0.07598590698 | H22: 0.07545503776 | I22: -3.626844063 | J22: 1771.218559 | K22: 146.3911321 | L22: 0.1587074483 | M22: 1.845565421e-07 | N22: 2.75 | O22: 2.5 | P22: 25 | Q22: 0.03462603878 | S22: 0.03779120796 | U22: 0.0275 | V22: 0.025 | W22: 64 | X22: 0.08876560333 | Y22: 0.07611582284 | Z22: 3.168652403e-06 | AA22: 0.08762561017 | AB22: 2.573434467e-08 | AC22: 0.08398224903 | AD22: 4.530787799e-07 | AE22: 1.976408014e-06 | AF22: 0.07877517768 | AG22: 0.07478490931 | AH22: 3.87049119e-06 | AI22: 0.03896453162 | AJ22: 4.91118167e-05 | AK22: 0.1124076615 | AL22: 1.106825574e-05 | AM22: 0.07956539483 | AN22: 1.676115572e-06 | AO22: -0.1630308692 | AP22: -0.1655308692 | AQ22: 0 | AR22: 0 | AS22: 5.161968806e-05 | AT22: 1.183859037e-06 | AU22: 0.0003282208408 | AV22: 0.0004680964827 | AW22: 8.179679638e-05 | AX22: 0.0001168682973 | AY22: 0.08099833139
A23: 1953-11-14T01:30:00 | B23: 2.68 | C23: 0.02 | D23: 0.02 | E23: 0.0212482663 | F23: 0.007490671729 | G23: 0.007490671729 | H23: 0.008021540951 | I23: -3.619353391 | J23: 1710.985488 | K23: 143.0531913 | L23: 0.1492568391 | M23: 2.664077347e-13 | N23: 3.25 | O23: 3 | P23: 38 | Q23: 0.05263157895 | S23: 0.05837461391 | U23: 0.0325 | V23: 0.03 | W23: 41 | X23: 0.05686546463 | Y23: 0.07109326202 | Z23: 4.00851918e-06 | AA23: 0.07859639833 | AB23: 9.351158008e-06 | AC23: 0.07387584618 | AD23: 5.729763966e-06 | AE23: 2.451725014e-06 | AF23: 0.06799255379 | AG23: 0.05770769944 | AH23: 1.404672207e-08 | AI23: 0.007435091072 | AJ23: 4.838340258e-05 | AK23: 0.1298347164 | AL23: 0.0001054358752 | AM23: 0.0751001055 | AN23: 6.584200547e-06 | AO23: -0.1580308692 | AP23: -0.1605308692 | AQ23: 0 | AR23: 0 | AS23: 7.726801318e-05 | AT23: 2.251023454e-06 | AU23: 0.0003923767975 | AV23: 0.0005202203572 | AW23: 0.0001089353208 | AX23: 0.0001470308989 | AY23: 0.07105187622
A24: 1953-12-14T12:00:00 | B24: 2.59 | C24: -0.09 | D24: 0.09 | E24: 0.0887517337 | F24: -0.03415891881 | G24: 0.03415891881 | H24: 0.03362804959 | I24: -3.65351231 | J24: 1996.137904 | K24: 158.5356828 | L24: 0.1965023874 | M24: 1.446139122e-09 | N24: 3.75 | O24: 3.5 | P24: 40 | Q24: 0.05540166205 | S24: 0.07462130072 | U24: 0.0375 | V24: 0.035 | W24: 58 | X24: 0.08044382802 | Y24: 0.06558305786 | Z24: 4.37311861e-06 | AA24: 0.06911737631 | AB24: 2.540366499e-06 | AC24: 0.06389112834 | AD24: 5.425581519e-06 | AE24: 9.671949651e-06 | AF24: 0.05834329731 | AG24: 0.04554094807 | AH24: 2.412299067e-05 | AI24: 0.0006688245501 | AJ24: 0.0001260208154 | AK24: 0.1209297883 | AL24: 3.245768273e-05 | AM24: 0.06715154316 | AN24: 3.49870964e-06 | AO24: -0.1530308692 | AP24: -0.1555308692 | AQ24: 0 | AR24: 0 | AS24: 0.0001142335827 | AT24: 4.196360453e-06 | AU24: 0.0004689787509 | AV24: 0.0005799516115 | AW24: 0.0001445298406 | AX24: 0.0001849655698 | AY24: 0.06166465136
A25: 1954-01-13T22:30:00 | B25: 2.48 | C25: -0.11 | D25: 0.11 | E25: 0.1087517337 | F25: -0.04339931553 | G25: 0.04339931553 | H25: 0.04286844631 | I25: -3.696911626 | J25: 2397.410455 | K25: 179.1272244 | L25: 0.2739159375 | M25: 6.206209926e-09 | N25: 4.25 | O25: 4 | P25: 104 | Q25: 0.1440443213 | S25: 0.08422697111 | U25: 0.0425 | V25: 0.04 | W25: 41 | X25: 0.05686546463 | Y25: 0.05975367314 | Z25: 1.651831368e-07 | AA25: 0.05959157289 | AB25: 1.471617071e-07 | AC25: 0.05444919976 | AD25: 1.156106122e-07 | AE25: 9.746238911e-07 | AF25: 0.04984987439 | AG25: 0.03668754046 | AH25: 8.062348985e-06 | AI25: 2.419688163e-05 | AJ25: 6.397880633e-05 | AK25: 0.1023650711 | AL25: 4.099434031e-05 | AM25: 0.05660032375 | AN25: 1.392073035e-09 | AO25: -0.1480308692 | AP25: -0.1505308692 | AQ25: 1 | AR25: 0.001386962552 | AS25: 0.000166800572 | AT25: 7.669698767e-06 | AU25: 0.0005604152751 | AV25: 0.0006486740489 | AW25: 0.0001910168561 | AX25: 0.0002326676072 | AY25: 0.05300503895
A26: 1954-02-13T09:00:00 | B26: 2.47 | C26: -0.01 | D26: 0.01 | E26: 0.008751733703 | F26: -0.004040409537 | G26: 0.004040409537 | H26: 0.003509540315 | I26: -3.700952035 | J26: 2436.999198 | K26: 181.0938037 | L26: 0.282259858 | M26: 1.868535761e-15 | N26: 4.75 | O26: 4.5 | P26: 60 | Q26: 0.08310249307 | S26: 0.08729350682 | U26: 0.0475 | V26: 0.045 | W26: 33 | X26: 0.04576976422 | Y26: 0.05377089637 | Z26: 1.267685459e-06 | AA26: 0.05037272604 | AB26: 4.195496552e-07 | AC26: 0.04582403267 | AD26: 5.831811022e-11 | AE26: 2.176726239e-07 | AF26: 0.04245427519 | AG26: 0.03009443363 | AH26: 4.86566315e-06 | AI26: 2.964216796e-07 | AJ26: 4.148206301e-05 | AK26: 0.08309338224 | AL26: 2.758519727e-05 | AM26: 0.0459358525 | AN26: 5.462438903e-10 | AO26: -0.1430308692 | AP26: -0.1455308692 | AQ26: 1 | AR26: 0.001386962552 | AS26: 0.0002405531022 | AT26: 1.37434764e-05 | AU26: 0.000669525927 | AV26: 0.0007280746295 | AW26: 0.0002514655768 | AX26: 0.000292640272 | AY26: 0.04516162532
A27: 1954-03-15T19:30:00 | B27: 2.37 | C27: -0.1 | D27: 0.1 | E27: 0.0987517337 | F27: -0.04132819549 | G27: 0.04132819549 | H27: 0.04079732627 | I27: -3.742280231 | J27: 2863.764978 | K27: 201.6623927 | L27: 0.3804817052 | M27: 4.61094785e-09 | N27: 5.25 | O27: 5 | P27: 39 | Q27: 0.0540166205 | S27: 0.08517002475 | U27: 0.0525 | V27: 0.05 | W27: 21 | X27: 0.02912621359 | Y27: 0.04779029031 | Z27: 6.897975438e-06 | AA27: 0.04174640258 | AB27: 3.153844953e-06 | AC27: 0.03815967016 | AD27: 1.615907675e-06 | AE27: 9.528842537e-07 | AF27: 0.03606311887 | AG27: 0.02507621226 | AH27: 3.248021936e-07 | AI27: 1.021430274e-09 | AJ27: 1.67987378e-05 | AK27: 0.06635880536 | AL27: 2.745080969e-05 | AM27: 0.03668450428 | AN27: 1.131242736e-06 | AO27: -0.1380308692 | AP27: -0.1405308692 | AQ27: 0 | AR27: 0 | AS27: 0.0003426368582 | AT27: 2.414502634e-05 | AU27: 0.0007996841549 | AV27: 0.0008202214327 | AW27: 0.0003297187028 | AX27: 0.0003680216108 | AY27: 0.03816571494
A28: 1954-04-15T06:00:00 | B28: 2.29 | C28: -0.08 | D28: 0.08 | E28: 0.0787517337 | F28: -0.03433813758 | G28: 0.03433813758 | H28: 0.03380726836 | I28: -3.776618368 | J28: 3248.454098 | K28: 219.3399918 | L28: 0.4823720337 | M28: 1.493002332e-09 | N28: 5.75 | O28: 5.5 | P28: 37 | Q28: 0.0512465374 | S28: 0.07953810148 | U28: 0.0575 | V28: 0.055 | W28: 23 | X28: 0.0319001387 | Y28: 0.04195094841 | Z28: 2.000371801e-06 | AA28: 0.03391998494 | AB28: 8.078770025e-08 | AC28: 0.03149849758 | AD28: 3.194368031e-09 | AE28: 3.500555343e-08 | AF28: 0.03057055965 | AG28: 0.02118069678 | AH28: 2.27537495e-06 | AI28: 8.132383655e-13 | AJ28: 2.015086829e-05 | AK28: 0.05280493776 | AL28: 8.653675719e-06 | AM28: 0.02919164881 | AN28: 1.452656927e-07 | AO28: -0.1330308692 | AP28: -0.1355308692 | AQ28: 0 | AR28: 0 | AS28: 0.0004820220323 | AT28: 4.158833847e-05 | AU28: 0.0009548947281 | AV28: 0.0009276646681 | AW28: 0.0004305566907 | AX28: 0.0004627414816 | AY28: 0.03200798078
A29: 1954-05-15T16:30:00 | B29: 2.37 | C29: 0.08 | D29: 0.08 | E29: 0.0812482663 | F29: 0.03433813758 | G29: 0.03433813758 | H29: 0.0348690068 | I29: -3.742280231 | J29: 2863.764978 | K29: 201.6623927 | L29: 0.3804817052 | M29: 1.797369896e-09 | N29: 6.25 | O29: 6 | P29: 49 | Q29: 0.06786703601 | S29: 0.0719145525 | U29: 0.0625 | V29: 0.06 | W29: 16 | X29: 0.02219140083 | Y29: 0.03637086419 | Z29: 3.981330318e-06 | AA29: 0.02702123723 | AB29: 4.619271206e-07 | AC29: 0.02581157144 | AD29: 2.595175297e-07 | AE29: 2.67987789e-07 | AF29: 0.02587017554 | AG29: 0.01810327515 | AH29: 3.309459723e-07 | AI29: 1.110223025e-16 | AJ29: 9.751648929e-06 | AK29: 0.04213968274 | AL29: 7.879880219e-06 | AM29: 0.02329567786 | AN29: 2.414708416e-08 | AO29: -0.1280308692 | AP29: -0.1305308692 | AQ29: 1 | AR29: 0.001386962552 | AS29: 0.0006697448693 | AT29: 7.023090666e-05 | AU29: 0.001139907978 | AV29: 0.001053568417 | AW29: 0.0005598867365 | AX29: 0.0005817151173 | AY29: 0.02665120401
A30: 1954-06-15T03:00:00 | B30: 2.38 | C30: 0.01 | D30: 0.01 | E30: 0.0112482663 | F30: 0.004210532536 | G30: 0.004210532536 | H30: 0.004741401758 | I30: -3.738069698 | J30: 2818.46981 | K30: 199.5303318 | L30: 0.3693285362 | M30: 1.136162729e-14 | N30: 6.75 | O30: 6.5 | P30: 46 | Q30: 0.06371191136 | S30: 0.06346534951 | U30: 0.0675 | V30: 0.065 | W30: 14 | X30: 0.01941747573 | Y30: 0.03114405641 | Z30: 2.723023654e-06 | AA30: 0.0211041463 | AB30: 5.633381434e-08 | AC30: 0.02102555024 | AD30: 5.120601239e-08 | AE30: 1.182377761e-07 | AF30: 0.02186104027 | AG30: 0.01563411958 | AH30: 2.834412617e-07 | AI30: 0 | AJ30: 7.466106211e-06 | AK30: 0.03383362504 | AL30: 4.115353682e-06 | AM30: 0.0187039194 | AN30: 1.008242827e-08 | AO30: -0.1230308692 | AP30: -0.1255308692 | AQ30: 2 | AR30: 0.002773925104 | AS30: 0.0009190975301 | AT30: 0.0001162780697 | AU30: 0.001360353401 | AV30: 0.001201883619 | AW30: 0.0007249566821 | AX30: 0.0007310803595 | AY30: 0.0220401037
A31: 1954-07-15T13:30:00 | B31: 2.3 | C31: -0.08 | D31: 0.08 | E31: 0.0787517337 | F31: -0.03419136475 | G31: 0.03419136475 | H31: 0.03366049553 | I31: -3.772261063 | J31: 3198.135576 | K31: 217.069054 | L31: 0.4683056928 | M31: 1.454531163e-09 | N31: 7.25 | O31: 7 | P31: 37 | Q31: 0.0512465374 | S31: 0.05499154973 | U31: 0.0725 | V31: 0.07 | W31: 17 | X31: 0.02357836338 | Y31: 0.02633943496 | Z31: 1.509607174e-07 | AA31: 0.01616007306 | AB31: 1.089723393e-06 | AC31: 0.01704386161 | AD31: 8.455388792e-07 | AE31: 5.206713846e-07 | AF31: 0.01845060511 | AG31: 0.01362554614 | AH31: 1.961555863e-06 | AI31: 0 | AJ31: 1.100869742e-05 | AK31: 0.02737194188 | AL31: 2.849750054e-07 | AM31: 0.01513176889 | AN31: 1.412771457e-06 | AO31: -0.1180308692 | AP31: -0.1205308692 | AQ31: 2 | AR31: 0.002773925104 | AS31: 0.001245728793 | AT31: 0.0001887470615 | AU31: 0.001622895436 | AV31: 0.001377576773 | AW31: 0.0009345925043 | AX31: 0.0009184862454 | AY31: 0.01810886862
A32: 1954-08-15 | B32: 2.36 | C32: 0.06 | D32: 0.06 | E32: 0.0612482663 | F32: 0.0257524961 | G32: 0.0257524961 | H32: 0.02628336532 | I32: -3.746508567 | J32: 2909.665137 | K32: 203.8114945 | L32: 0.3919630881 | M32: 3.296748591e-10 | N32: 7.75 | O32: 7.5 | P32: 49 | Q32: 0.06786703601 | S32: 0.04698864032 | U32: 0.0775 | V32: 0.075 | W32: 12 | X32: 0.01664355062 | Y32: 0.02200125472 | Z32: 5.68415707e-07 | AA32: 0.01213198363 | AB32: 4.030541932e-07 | AC32: 0.01376181005 | AD32: 1.644441336e-07 | AE32: 2.342977216e-08 | AF32: 0.01555579905 | AG32: 0.01197150361 | AH32: 4.322380853e-07 | AI32: 0 | AJ32: 5.485302522e-06 | AK32: 0.02232649031 | AL32: 6.395208617e-07 | AM32: 0.01234254015 | AN32: 3.663107151e-07 | AO32: -0.1130308692 | AP32: -0.1155308692 | AQ32: 0 | AR32: 0 | AS32: 0.001667612372 | AT32: 0.0003003830655 | AU32: 0.001935414398 | AV32: 0.001586934343 | AW32: 0.001199455851 | AX32: 0.001153440613 | AY32: 0.01478682844
A33: 1954-09-14T10:30:00 | B33: 2.38 | C33: 0.02 | D33: 0.02 | E33: 0.0212482663 | F33: 0.008438868646 | G33: 0.008438868646 | H33: 0.008969737867 | I33: -3.738069698 | J33: 2818.46981 | K33: 199.5303318 | L33: 0.3693285362 | M33: 5.208090331e-13 | N33: 8.25 | O33: 8 | P33: 44 | Q33: 0.06094182825 | S33: 0.03972450434 | U33: 0.0825 | V33: 0.08 | W33: 2 | X33: 0.002773925104 | Y33: 0.01815089989 | Z33: 4.682205019e-06 | AA33: 0.008929625968 | AB33: 7.50349567e-07 | AC33: 0.01107641966 | AD33: 1.364978531e-06 | AE33: 2.112724599e-06 | AF33: 0.01310313573 | AG33: 0.010594423 | AH33: 1.211092817e-06 | AI33: 0 | AJ33: 1.523695145e-07 | AK33: 0.01836249836 | AL33: 4.811952793e-06 | AM33: 0.01015116438 | AN33: 1.077696224e-06 | AO33: -0.1080308692 | AP33: -0.1105308692 | AQ33: 2 | AR33: 0.002773925104 | AS33: 0.002204836645 | AT33: 0.0004686877088 | AU33: 0.002307215719 | AV33: 0.001837970635 | AW33: 0.001532315098 | AX33: 0.001447723292 | AY33: 0.01200261031
A34: 1954-10-14T21:00:00 | B34: 2.43 | C34: 0.05 | D34: 0.05 | E34: 0.0512482663 | F34: 0.02079076967 | G34: 0.02079076967 | H34: 0.02132163889 | I34: -3.717278929 | J34: 2600.84675 | K34: 189.1224892 | L34: 0.318167259 | M34: 9.395578003e-11 | N34: 8.75 | O34: 8.5 | P34: 25 | Q34: 0.03462603878 | S34: 0.03331097509 | U34: 0.0875 | V34: 0.085 | W34: 7 | X34: 0.009708737864 | Y34: 0.0147896736 | Z34: 5.112060977e-07 | AA34: 0.006443883335 | AB34: 2.110747544e-07 | AC34: 0.008892199361 | AD34: 1.320267578e-08 | AE34: 3.447909983e-08 | AF34: 0.01102828117 | AG34: 0.00943660848 | AH34: 1.466423791e-09 | AI34: 0 | AJ34: 1.866526553e-06 | AK34: 0.01522507827 | AL34: 6.025744837e-07 | AM34: 0.008416734432 | AN34: 3.305490831e-08 | AO34: -0.1030308692 | AP34: -0.1055308692 | AQ34: 5 | AR34: 0.00693481276 | AS34: 0.002879170834 | AT34: 0.0007169759192 | AU34: 0.002749270529 | AV34: 0.002140977662 | AW34: 0.001948319433 | AX34: 0.00181586847 | AY34: 0.009687071663
A35: 1954-11-14T07:30:00 | B35: 2.48 | C35: 0.05 | D35: 0.05 | E35: 0.0512482663 | F35: 0.02036730282 | G35: 0.02036730282 | H35: 0.02089817205 | I35: -3.696911626 | J35: 2397.410455 | K35: 179.1272244 | L35: 0.2739159375 | M35: 8.330092066e-11 | N35: 9.25 | O35: 9 | P35: 28 | Q35: 0.03878116343 | S35: 0.02776048678 | U35: 0.0925 | V35: 0.09 | W35: 3 | X35: 0.004160887656 | Y35: 0.01190224078 | Z35: 1.186703925e-06 | AA35: 0.004559056863 | AB35: 3.139380546e-09 | AC35: 0.007124007809 | AD35: 1.738629909e-07 | AE35: 5.179744237e-07 | AF35: 0.00927534837 | AG35: 0.008454485895 | AH35: 3.650492245e-07 | AI35: 0 | AJ35: 3.428314076e-07 | AK35: 0.01272218782 | AL35: 1.451403178e-06 | AM35: 0.00703308544 | AN35: 1.633568339e-07 | AO35: -0.09803086922 | AP35: -0.1005308692 | AQ35: 0 | AR35: 0 | AS35: 0.003713369432 | AT35: 0.001075321853 | AU35: 0.003274490351 | AV35: 0.002509270462 | AW35: 0.002465260417 | AX35: 0.002275713694 | AY35: 0.007775257875
A36: 1954-12-14T18:00:00 | B36: 2.51 | C36: 0.03 | D36: 0.03 | E36: 0.0312482663 | F36: 0.01202419297 | G36: 0.01202419297 | H36: 0.01255506219 | I36: -3.684887433 | J36: 2281.845182 | K36: 173.3234999 | L36: 0.2502907018 | M36: 3.916635981e-12 | N36: 9.75 | O36: 9.5 | P36: 6 | Q36: 0.008310249307 | S36: 0.02302719774 | U36: 0.0975 | V36: 0.095 | W36: 4 | X36: 0.005547850208 | Y36: 0.009460380127 | Z36: 3.031265419e-07 | AA36: 0.003162388912 | AB36: 1.12681695e-07 | AC36: 0.005698003747 | AD36: 4.464571325e-10 | AE36: 1.000894644e-07 | AF36: 0.00779607572 | AG36: 0.007614685715 | AH36: 8.459027751e-08 | AI36: 0 | AJ36: 6.09478058e-07 | AK36: 0.01070944987 | AL36: 5.275665554e-07 | AM36: 0.005920402764 | AN36: 2.748423899e-09 | AO36: -0.09303086922 | AP36: -0.09553086922 | AQ36: 1 | AR36: 0.001386962552 | AS36: 0.004730190064 | AT36: 0.001581194456 | AU36: 0.00389803786 | AV36: 0.002960201382 | AW36: 0.003103799088 | AX36: 0.002849001873 | AY36: 0.006207598175
A37: 1955-01-14T04:30:00 | B37: 2.61 | C37: 0.1 | D37: 0.1 | E37: 0.1012482663 | F37: 0.03906746819 | G37: 0.03906746819 | H37: 0.03959833741 | I37: -3.645819965 | J37: 1929.576364 | K37: 154.9915354 | L37: 0.1849037805 | M37: 3.855331363e-09 | N37: 10.25 | O37: 10 | P37: 6 | Q37: 0.008310249307 | S37: 0.01903502149 | U37: 0.1025 | V37: 0.1 | W37: 3 | X37: 0.004160887656 | Y37: 0.007426738864 | Z37: 2.112036458e-07 | AA37: 0.002150643706 | AB37: 8.002140074e-08 | AC37: 0.004551427388 | AD37: 3.020223413e-09 | AE37: 1.129304633e-07 | AF37: 0.006548980702 | AG37: 0.006891327182 | AH37: 1.47629703e-07 | AI37: 0 | AJ37: 3.428314076e-07 | AK37: 0.009078066912 | AL37: 4.787851848e-07 | AM37: 0.005018540924 | AN37: 1.456572531e-08 | AO37: -0.08803086922 | AP37: -0.09053086922 | AQ37: 1 | AR37: 0.001386962552 | AS37: 0.005951120392 | AT37: 0.002279528432 | AU37: 0.004637674185 | AV37: 0.00351654272 | AW37: 0.003887628938 | AX37: 0.003562003905 | AY37: 0.004930520834
A38: 1955-02-13T15:00:00 | B38: 2.65 | C38: 0.04 | D38: 0.04 | E38: 0.0412482663 | F38: 0.01520941866 | G38: 0.01520941866 | H38: 0.01574028789 | I38: -3.630610546 | J38: 1801.991345 | K38: 148.0818395 | L38: 0.1636446213 | M38: 1.520813739e-11 | N38: 10.75 | O38: 10.5 | P38: 13 | Q38: 0.01800554017 | S38: 0.0156957121 | U38: 0.1075 | V38: 0.105 | W38: 6 | X38: 0.008321775312 | Y38: 0.005758341668 | Z38: 1.301226148e-07 | AA38: 0.001433951838 | AB38: 9.394477664e-07 | AC38: 0.003631736939 | AD38: 4.355734641e-07 | AE38: 1.578346863e-07 | AF38: 0.005498541057 | AG38: 0.006264103626 | AH38: 8.384183702e-08 | AI38: 0 | AJ38: 1.371325631e-06 | AK38: 0.007745653075 | AL38: 6.572610529e-09 | AM38: 0.004281955324 | AN38: 3.231711988e-07 | AO38: -0.08303086922 | AP38: -0.08553086922 | AQ38: 4 | AR38: 0.005547850208 | AS38: 0.007394836799 | AT38: 0.003221941667 | AU38: 0.005514140586 | AV38: 0.004208367216 | AW38: 0.004843535832 | AX38: 0.004446099681 | AY38: 0.003896638866
A39: 1955-03-16T01:30:00 | B39: 2.68 | C39: 0.03 | D39: 0.03 | E39: 0.0312482663 | F39: 0.01125715452 | G39: 0.01125715452 | H39: 0.01178802375 | I39: -3.619353391 | J39: 1710.985488 | K39: 143.0531913 | L39: 0.1492568391 | M39: 2.683156548e-12 | N39: 11.25 | O39: 11 | P39: 5 | Q39: 0.006925207756 | S39: 0.01291987394 | U39: 0.1125 | V39: 0.11 | W39: 3 | X39: 0.004160887656 | Y39: 0.00440967329 | Z39: 1.225629536e-09 | AA39: 0.0009373754176 | AB39: 2.057629931e-07 | AC39: 0.002895446584 | AD39: 3.170972491e-08 | AE39: 4.073306176e-09 | AF39: 0.004614431438 | AG39: 0.005716911709 | AH39: 4.794476939e-08 | AI39: 0 | AJ39: 3.428314076e-07 | AK39: 0.006649430844 | AL39: 1.226306376e-07 | AM39: 0.00367594127 | AN39: 4.656891035e-09 | AO39: -0.07803086922 | AP39: -0.08053086922 | AQ39: 0 | AR39: 0 | AS39: 0.009075449943 | AT39: 0.004464812984 | AU39: 0.006551567867 | AV39: 0.00507558219 | AW39: 0.006001305155 | AX39: 0.005538209829 | AY39: 0.003064630195
A40: 1955-04-15T12:00:00 | B40: 2.75 | C40: 0.07 | D40: 0.07 | E40: 0.0712482663 | F40: 0.02578411716 | G40: 0.02578411716 | H40: 0.02631498638 | I40: -3.593569274 | J40: 1513.432046 | K40: 131.8181717 | L40: 0.1202297438 | M40: 3.320617843e-10 | N40: 11.75 | O40: 11.5 | P40: 13 | Q40: 0.01800554017 | S40: 0.0106231775 | U40: 0.1175 | V40: 0.115 | W40: 1 | X40: 0.001386962552 | Y40: 0.003335224744 | Z40: 7.516288254e-08 | AA40: 0.0006007661309 | AB40: 1.223969926e-08 | AC40: 0.002306881226 | AD40: 1.675743299e-08 | AE40: 1.221701291e-07 | AF40: 0.003870828797 | AG40: 0.005236855995 | AH40: 2.934986044e-07 | AI40: 0 | AJ40: 3.809237863e-08 | AK40: 0.005741228923 | AL40: 3.754383294e-07 | AM40: 0.003173868687 | AN40: 6.322838681e-08 | AO40: -0.07303086922 | AP40: -0.07553086922 | AQ40: 3 | AR40: 0.004160887656 | AS40: 0.01100062736 | AT40: 0.006065991814 | AU40: 0.007777899523 | AV40: 0.006171270074 | AW40: 0.007393414221 | AX40: 0.006880905024 | AY40: 0.002398911702
A41: 1955-05-15T22:30:00 | B41: 2.76 | C41: 0.01 | D41: 0.01 | E41: 0.0112482663 | F41: 0.003629768051 | G41: 0.003629768051 | H41: 0.004160637272 | I41: -3.589939506 | J41: 1486.829888 | K41: 130.2689328 | L41: 0.1165504352 | M41: 5.187512207e-15 | N41: 12.25 | O41: 12 | P41: 5 | Q41: 0.006925207756 | S41: 0.008729462428 | U41: 0.1225 | V41: 0.12 | W41: 2 | X41: 0.002773925104 | Y41: 0.002491457587 | Z41: 1.579958383e-09 | AA41: 0.000377494123 | AB41: 1.137204247e-07 | AC41: 0.001836972491 | AD41: 1.738376633e-08 | AE41: 4.409055499e-09 | AF41: 0.003245790872 | AG41: 0.00481351649 | AH41: 8.23749113e-08 | AI41: 0 | AJ41: 1.523695145e-07 | AK41: 0.004983812749 | AL41: 9.67050179e-08 | AM41: 0.002755153546 | AN41: 6.97765161e-12 | AO41: -0.06803086922 | AP41: -0.07053086922 | AQ41: 8 | AR41: 0.01109570042 | AS41: 0.01316971748 | AT41: 0.008080036529 | AU41: 0.009225302555 | AV41: 0.007565884445 | AW41: 0.009054434312 | AX41: 0.008521930806 | AY41: 0.001869185009
A42: 1955-06-15T09:00:00 | B42: 2.78 | C42: 0.02 | D42: 0.02 | E42: 0.0212482663 | F42: 0.007220247973 | G42: 0.007220247973 | H42: 0.007751117195 | I42: -3.582719258 | J42: 1434.793396 | K42: 127.2114627 | L42: 0.109510126 | M42: 2.168631792e-13 | N42: 12.75 | O42: 12.5 | P42: 9 | Q42: 0.01246537396 | S42: 0.007171905364 | U42: 0.1275 | V42: 0.125 | W42: 3 | X42: 0.004160887656 | Y42: 0.00183819506 | Z42: 1.068297207e-07 | AA42: 0.0002325561394 | AB42: 3.055799704e-07 | AC42: 0.001462160719 | AD42: 1.442203382e-07 | AE42: 4.10717008e-08 | AF42: 0.002720706803 | AG42: 0.004438403075 | AH42: 1.525045694e-09 | AI42: 0 | AJ42: 3.428314076e-07 | AK42: 0.004348188082 | AL42: 6.946821695e-10 | AM42: 0.002403767239 | AN42: 6.113806258e-08 | AO42: -0.06303086922 | AP42: -0.06553086922 | AQ42: 11 | AR42: 0.01525658807 | AS42: 0.01557202821 | AT42: 0.01055207315 | AU42: 0.01093052014 | AV42: 0.009351959702 | AW42: 0.01102005185 | AX42: 0.01051277512 | AY42: 0.001449913364
A43: 1955-07-15T19:30:00 | B43: 2.9 | C43: 0.12 | D43: 0.12 | E43: 0.1212482663 | F43: 0.04225980929 | G43: 0.04225980929 | H43: 0.04279067851 | I43: -3.540459449 | J43: 1153.393755 | K43: 109.9811856 | L43: 0.07502036717 | M43: 6.138963308e-09 | N43: 13.25 | O43: 13 | P43: 4 | Q43: 0.005540166205 | S43: 0.005893046035 | U43: 0.1325 | V43: 0.13 | W43: 3 | X43: 0.004160887656 | Y43: 0.001339489739 | Z43: 1.576294299e-07 | AA43: 0.0001404618133 | AB43: 3.200757219e-07 | AC43: 0.001163430235 | AD43: 1.779158612e-07 | AE43: 7.006793552e-08 | AF43: 0.002279815955 | AG43: 0.004104544512 | AH43: 6.286237354e-11 | AI43: 0 | AJ43: 3.428314076e-07 | AK43: 0.003811611674 | AL43: 2.415717063e-09 | AM43: 0.002107136834 | AN43: 8.352262255e-08 | AO43: -0.05803086922 | AP43: -0.06053086922 | AQ43: 9 | AR43: 0.01248266297 | AS43: 0.01818543209 | AT43: 0.01351061861 | AU43: 0.01293508777 | AV43: 0.01164783893 | AW43: 0.01332560201 | AX43: 0.01290578572 | AY43: 0.001119773473
A44: 1955-08-15T06:00:00 | B44: 2.97 | C44: 0.07 | D44: 0.07 | E44: 0.0712482663 | F44: 0.02385121582 | G44: 0.02385121582 | H44: 0.02438208504 | I44: -3.516608233 | J44: 1011.659956 | K44: 100.7758276 | L44: 0.05993446146 | M44: 2.100995153e-10 | N44: 13.75 | O44: 13.5 | P44: 8 | Q44: 0.01108033241 | S44: 0.004844188659 | U44: 0.1375 | V44: 0.135 | W44: 0 | X44: 0 | Y44: 0.0009640440646 | Z44: 1.840358334e-08 | AA44: 8.317667694e-05 | AB44: 1.369972195e-10 | AC44: 0.0009254829632 | AD44: 1.696076664e-08 | AE44: 7.222367855e-08 | AF44: 0.001909789456 | AG44: 0.003806175556 | AH44: 2.868707399e-07 | AI44: 0 | AJ44: 0 | AK44: 0.003356115674 | AL44: 2.230398499e-07 | AM44: 0.001855329336 | AN44: 6.816330585e-08 | AO44: -0.05303086922 | AP44: -0.05553086922 | AQ44: 12 | AR44: 0.01664355062 | AS44: 0.02097547421 | AT44: 0.01695999247 | AU44: 0.01528527982 | AV44: 0.0145958244 | AW44: 0.01600399039 | AX44: 0.01574924879 | AY44: 0.0008611133815
A45: 1955-09-14T16:30:00 | B45: 2.97 | C45: 0 | D45: 0 | E45: 0.001248266297 | F45: 0 | G45: 0 | H45: 0.0005308692216 | I45: -3.516608233 | J45: 1011.659956 | K45: 100.7758276 | L45: 0.05993446146 | M45: 2.238336005e-20 | N45: 14.25 | O45: 14 | P45: 4 | Q45: 0.005540166205 | S45: 0.003984504348 | U45: 0.1425 | V45: 0.14 | W45: 1 | X45: 0.001386962552 | Y45: 0.0006852737164 | Z45: 9.749845982e-09 | AA45: 4.829005268e-05 | AB45: 3.5486021e-08 | AC45: 0.0007360432216 | AD45: 8.390019302e-09 | AE45: 8.93390216e-10 | AF45: 0.00159936831 | AG45: 0.003538496402 | AH45: 9.166530512e-08 | AI45: 0 | AJ45: 3.809237863e-08 | AK45: 0.002967406328 | AL45: 4.946143623e-08 | AM45: 0.001640442865 | AN45: 1.272322163e-09 | AO45: -0.04803086922 | AP45: -0.05053086922 | AQ45: 13 | AR45: 0.01803051318 | AS45: 0.02389514515 | AT45: 0.02087320129 | AU45: 0.01803155943 | AV45: 0.01834225214 | AW45: 0.01908285747 | AX45: 0.01907983508 | AY45: 0.0006594374057
A46: 1955-10-15T03:00:00 | B46: 2.88 | C46: -0.09 | D46: 0.09 | E46: 0.0887517337 | F46: -0.03077165867 | G46: 0.03077165867 | H46: 0.03024078945 | I46: -3.547379892 | J46: 1196.798582 | K46: 112.7233907 | L46: 0.07994659248 | M46: 7.648191371e-10 | N46: 14.75 | O46: 14.5 | P46: 4 | Q46: 0.005540166205 | S46: 0.003280031868 | U46: 0.1475 | V46: 0.145 | W46: 1 | X46: 0.001386962552 | Y46: 0.0004811062044 | Z46: 1.624902421e-08 | AA46: 2.74869528e-05 | AB46: 3.659750307e-08 | AC46: 0.0005852805441 | AD46: 1.272661469e-08 | AE46: 4.545415812e-11 | AF46: 0.001339051854 | AG46: 0.003297486057 | AH46: 7.227920914e-08 | AI46: 0 | AJ46: 3.809237863e-08 | AK46: 0.002634036587 | AL46: 3.079591383e-08 | AM46: 0.001456149259 | AN46: 9.478812707e-11 | AO46: -0.04303086922 | AP46: -0.04553086922 | AQ46: 15 | AR46: 0.02080443828 | AS46: 0.02688544818 | AT46: 0.02518636302 | AU46: 0.02122713759 | AV46: 0.02296792625 | AW46: 0.02258081266 | AX46: 0.02291201633 | AY46: 0.0005029311535
A47: 1955-11-14T13:30:00 | B47: 2.89 | C47: 0.01 | D47: 0.01 | E47: 0.0112482663 | F47: 0.003466207976 | G47: 0.003466207976 | H47: 0.003997077198 | I47: -3.543913684 | J47: 1174.929148 | K47: 111.3459569 | L47: 0.0774465855 | M47: 4.078075077e-15 | N47: 15.25 | O47: 15 | P47: 2 | Q47: 0.002770083102 | S47: 0.002702690293 | U47: 0.1525 | V47: 0.15 | W47: 1 | X47: 0.001386962552 | Y47: 0.0003336011441 | Z47: 2.197168823e-08 | AA47: 1.533939753e-05 | AB47: 3.725445699e-08 | AC47: 0.0004653352143 | AD47: 1.681974158e-08 | AE47: 1.402499849e-09 | AF47: 0.00112083055 | AG47: 0.003079756292 | AH47: 5.674357715e-08 | AI47: 0 | AJ47: 3.809237863e-08 | AK47: 0.002346780273 | AL47: 1.82425754e-08 | AM47: 0.001297348098 | AN47: 1.590247603e-10 | AO47: -0.03803086922 | AP47: -0.04053086922 | AQ47: 14 | AR47: 0.01941747573 | AS47: 0.02987683657 | AT47: 0.02979578644 | AU47: 0.02492493719 | AV47: 0.02830016187 | AW47: 0.02650251948 | AX47: 0.02722459988 | AY47: 0.0003820337122
A48: 1955-12-15 | B48: 2.96 | C48: 0.07 | D48: 0.07 | E48: 0.0712482663 | F48: 0.02393276621 | G48: 0.02393276621 | H48: 0.02446363543 | I48: -3.519980918 | J48: 1030.969606 | K48: 102.0541276 | L48: 0.06189954171 | M48: 2.143512283e-10 | N48: 15.75 | O48: 15.5 | P48: 1 | Q48: 0.001385041551 | S48: 0.002229363842 | U48: 0.1575 | V48: 0.155 | W48: 0 | X48: 0 | Y48: 0.0002284671653 | Z48: 1.033608824e-09 | AA48: 8.392720906e-06 | AB48: 1.394807212e-12 | AC48: 0.0003699311395 | AD48: 2.709882138e-09 | AE48: 1.742107475e-08 | AF48: 0.0009379575018 | AG48: 0.002882436447 | AH48: 1.645235618e-07 | AI48: 0 | AJ48: 0 | AK48: 0.002098155466 | AL48: 8.717339323e-08 | AM48: 0.001159903223 | AN48: 2.664109875e-08 | AO48: -0.03303086922 | AP48: -0.03553086922 | AQ48: 32 | AR48: 0.04438280166 | AS48: 0.03279152893 | AT48: 0.03455868816 | AU48: 0.02917164866 | AV48: 0.03357577158 | AW48: 0.03083232568 | AX48: 0.03194556417 | AY48: 0.0002890596811
A49: 1956-01-14T10:30:00 | B49: 2.9 | C49: -0.06 | D49: 0.06 | E49: 0.0587517337 | F49: -0.02047853134 | G49: 0.02047853134 | H49: 0.01994766212 | I49: -3.540459449 | J49: 1153.393755 | K49: 109.9811856 | L49: 0.07502036717 | M49: 6.300166406e-11 | N49: 16.25 | O49: 16 | P49: 0 | Q49: 0 | S49: 0.001841086342 | U49: 0.1625 | V49: 0.16 | W49: 0 | X49: 0 | Y49: 0.0001545360264 | Z49: 4.72898682e-10 | AA49: 4.502046908e-06 | AB49: 4.013549775e-13 | AC49: 0.0002940617978 | AD49: 1.712323582e-09 | AE49: 1.219481594e-08 | AF49: 0.0007847535951 | AG49: 0.002703081871 | AH49: 1.446861703e-07 | AI49: 0 | AJ49: 0 | AK49: 0.001882059062 | AL49: 7.014151113e-08 | AM49: 0.001040440714 | AN49: 2.143597782e-08 | AO49: -0.02803086922 | AP49: -0.03053086922 | AQ49: 15 | AR49: 0.02080443828 | AS49: =NORMDIST(AO49,F$745,F$747,TRUE)-NORMDIST(AO48,F$745,F$747,TRUE) -> 0.03554663101 | AT49: =NORMDIST(AO49,F$745,AA$11,TRUE)-NORMDIST(AO48,F$745,AA$11,TRUE) -> 0.03929819917 | AU49: 0.0339962769 | AV49: 0.03755005275 | AW49: 0.03552593811 | AX49: =1/(1+EXP(-$AC$11*(AO49-$F$745)))-1/(1+EXP(-$AC$11*(AO48-$F$745))) -> 0.03693792309 | AY49: 0.0002178706416
A50: 1956-02-13T21:00:00 | B50: 2.84 | C50: -0.06 | D50: 0.06 | E50: 0.0587517337 | F50: -0.02090668482 | G50: 0.02090668482 | H50: 0.0203758156 | I50: -3.561366134 | J50: 1287.699949 | K50: 118.3613161 | L50: 0.09072845033 | M50: 7.156324241e-11 | N50: 16.75 | O50: 16.5 | P50: 0 | Q50: 0 | S50: 0.001522333239 | U50: 0.1675 | V50: 0.165 | W50: 0 | X50: 0 | Y50: 0.0001032393761 | Z50: 2.110568076e-10 | AA50: 2.367718074e-06 | AB50: 1.110116609e-13 | AC50: 0.0002337365946 | AD50: 1.081837538e-09 | AE50: 8.532983789e-09 | AF50: =(GAMMADIST(U50,AF$11,AF$12,TRUE)-GAMMADIST(U49,AF$11,AF$12,TRUE)) -> 0.0006564416816 | AG50: =(1-GAMMADIST(1/U50,AG$11,1/AG$12,TRUE))-(1-GAMMADIST(1/U49,AG$11,1/AG$12,TRUE)) -> 0.00253960064 | AH50: 1.277142854e-07 | AI50: 0 | AJ50: 0 | AK50: =(1-GAMMADIST((1/U50)^AK$10,AK$11,(1/AK$12)^AK$10,TRUE))-(1-GAMMADIST((1/U49)^AK$10,AK$11,(1/AK$12)^AK$10,TRUE)) -> 0.001693484722 | AL50: 5.678991097e-08 | AM50: 0.0009361929653 | AN50: 1.735558947e-08 | AO50: -0.02303086922 | AP50: -0.02553086922 | AQ50: 31 | AR50: 0.04299583911 | AS50: 0.03805791142 | AT50: 0.04381280508 | AU50: 0.03938758884 | AV50: 0.03978269742 | AW50: 0.0404991657 | AX50: 0.04199112451 | AY50: =(GAMMADIST($U50^$AI$2,$AI$3,$AI$4^$AI$2,TRUE)-GAMMADIST($U49^$AI$2,$AI$3,$AI$4^$AI$2,TRUE)) -> 0.0001635935928
A51: 1956-03-15T07:30:00 | B51: 2.96 | C51: 0.12 | D51: 0.12 | E51: 0.1212482663 | F51: 0.04138521616 | G51: 0.04138521616 | H51: 0.04191608538 | I51: -3.519980918 | J51: 1030.969606 | K51: 102.0541276 | L51: 0.06189954171 | M51: 5.423558115e-09 | N51: 17.25 | O51: 17 | P51: 0 | Q51: 0 | S51: 0.001260418128 | U51: 0.1725 | V51: 0.17 | W51: 0 | X51: 0 | Y51: 6.811937933e-05 | Z51: 9.188613545e-11 | AA51: 1.220851059e-06 | AB51: 2.951440216e-14 | AC51: 0.0001857767146 | AD51: 6.834254989e-10 | AE51: 5.968461431e-09 | AF51: 0.0005490057397 | AG51: 0.002390194519 | AH51: 1.131293037e-07 | AI51: 0 | AJ51: 0 | AK51: 0.001528303763 | AL51: 4.625173051e-08 | AM51: 0.000844877555 | AN51: 1.413501154e-08 | AO51: -0.01803086922 | AP51: -0.02053086922 | AQ51: 31 | AR51: 0.04299583911 | AS51: 0.04024400383 | AT51: 0.04788974028 | AU51: 0.04524697434 | AV51: 0.04128086322 | AW51: 0.04561145044 | AX51: 0.04682374625 | AY51: 0.0001223826212
A52: 1956-04-14T18:00:00 | B52: 3.18 | C52: 0.22 | D52: 0.22 | E52: 0.2212482663 | F52: 0.07169192846 | G52: 0.07169192846 | H52: 0.07222279768 | I52: -3.448288989 | J52: 670.4023178 | K52: 76.59910079 | L52: 0.02994523428 | M52: 1.41920733e-07 | N52: 17.75 | O52: 17.5 | P52: 0 | Q52: 0 | S52: 0.001044985134 | U52: 0.1775 | V52: 0.175 | W52: 1 | X52: 0.001386962552 | Y52: 4.439209798e-05 | Z52: 3.569297869e-08 | AA52: 6.171746554e-07 | AB52: 3.805848525e-08 | AC52: 0.0001476512525 | AD52: 3.041371281e-08 | AE52: 1.704914649e-08 | AF52: 0.0004590714496 | AG52: 0.002253311082 | AH52: 1.486256982e-08 | AI52: 0 | AJ52: 3.809237863e-08 | AK52: 0.001383093875 | AL52: 2.963695633e-13 | AM52: 0.0007646025613 | AN52: 7.669939762e-09 | AO52: -0.01303086922 | AP52: -0.01553086922 | AQ52: 31 | AR52: 0.04299583911 | AS52: 0.04203074988 | AT52: 0.05132121373 | AU52: 0.0512782795 | AV52: 0.04754515649 | AW52: 0.05063773162 | AX52: 0.05110280099 | AY52: 9.121939459e-05
A53: 1956-05-15T04:30:00 | B53: 3.07 | C53: -0.11 | D53: 0.11 | E53: 0.1087517337 | F53: -0.03520363519 | G53: 0.03520363519 | H53: 0.03467276597 | I53: -3.483492624 | J53: 834.5765902 | K53: 88.64293605 | L53: 0.04324658755 | M53: 1.73752447e-09 | N53: 18.25 | O53: 18 | P53: 0 | Q53: 0 | S53: 0.0008675860365 | U53: 0.1825 | V53: 0.18 | W53: 1 | X53: 0.001386962552 | Y53: 2.857263761e-05 | Z53: 3.653907247e-08 | AA53: 3.058906251e-07 | AB53: 3.807557815e-08 | AC53: 0.0001173459548 | AD53: 3.191933275e-08 | AE53: 1.992722641e-08 | AF53: 0.0003838050699 | AG53: 0.002127604673 | AH53: 1.086239112e-08 | AI53: 0 | AJ53: 3.809237863e-08 | AK53: 0.001255004421 | AL53: 3.44810859e-10 | AM53: 0.0006937920933 | AN53: 9.514560096e-09 | AO53: -0.008030869222 | AP53: -0.01053086922 | AQ53: 43 | AR53: 0.05963938974 | AS53: 0.04335536248 | AT53: 0.05392179889 | AU53: 0.05667206726 | AV53: 0.05794856108 | AW53: 0.05520484119 | AX53: 0.05448167031 | AY53: 6.774782961e-05
A54: 1956-06-14T15:00:00 | B54: 3 | C54: -0.07 | D54: 0.07 | E54: 0.0687517337 | F54: -0.02306527293 | G54: 0.02306527293 | H54: 0.02253440371 | I54: -3.506557897 | J54: 955.5298328 | K54: 97.012903 | L54: 0.05438424 | M54: 1.309412321e-10 | N54: 18.75 | O54: 18.5 | P54: 0 | Q54: 0 | S54: 0.0007213305644 | U54: 0.1875 | V54: 0.185 | W54: 0 | X54: 0 | Y54: 1.81637145e-05 | Z54: 6.533079695e-12 | AA54: 1.486404175e-07 | AB54: 4.375044302e-16 | AC54: 9.32582568e-05 | AD54: 1.722198507e-10 | AE54: 2.038228804e-09 | AF54: 0.0003208279205 | AG54: 0.002011904378 | AH54: 8.015364808e-08 | AI54: 0 | AJ54: 0 | AK54: 0.001141649872 | AL54: 2.580919663e-08 | AM54: 0.0006311273818 | AN54: 7.887559844e-09 | AO54: -0.003030869222 | AP54: -0.005530869222 | AQ54: 40 | AR54: 0.05547850208 | AS54: 0.04417008463 | AT54: 0.05554498373 | AU54: 0.05869581186 | AV54: 0.05950471705 | AW54: 0.0585446747 | AX54: 0.05665248842 | AY54: 5.013833899e-05
A55: 1956-07-15T01:30:00 | B55: 3.11 | C55: 0.11 | D55: 0.11 | E55: 0.1112482663 | F55: 0.03601043752 | G55: 0.03601043752 | H55: 0.03654130674 | I55: -3.47054746 | J55: 771.3894674 | K55: 84.11029118 | L55: 0.0378778165 | M55: 2.38069875e-09 | N55: 19.25 | O55: 19 | P55: 0 | Q55: 0 | S55: 0.0006005987567 | U55: 0.1925 | V55: 0.19 | W55: 0 | X55: 0 | Y55: 1.140430095e-05 | Z55: 2.575407528e-12 | AA55: 7.081419362e-08 | AB55: 9.930000036e-17 | AC55: 7.411345708e-05 | AD55: 1.087684063e-10 | AE55: 1.423787734e-09 | AF55: 0.0002681441414 | AG55: 0.001905187623 | AH55: 7.187603721e-08 | AI55: 0 | AJ55: 0 | AK55: 0.001041025034 | AL55: 2.146006181e-08 | AM55: 0.000575499915 | AN55: 6.558418855e-09 | AO55: 0.001969130778 | AP55: -0.0005308692216 | AQ55: 42 | AR55: =AQ55/721 -> 0.05825242718 | AS55: 0.04444504681 | AT55: 0.05609683183 | AU55: =GAMMADIST(AO55-$F$745,AF$11,AF$12,TRUE) -> 0.0487572885 | AV55: =AM$12*GAMMADIST((AO55-$F$745)^AI$10,AI$11,AI$12^AI$10,TRUE)+(1-AM$12)*(1-GAMMADIST(1/(AO55-$F$745)^AK$10,AK$11,1/AK$12^AK$10,TRUE)) -> 0.05143814349 | AW55: =GAMMADIST(ABS(AO55-$F$745)^AI$2,AI$3,AI$4^AI$2,TRUE) -> 0.05841439549 | AX55: 0.05740162446 | AY55: 3.697731077e-05
A56: 1956-08-14T12:00:00 | B56: 3.33 | C56: 0.22 | D56: 0.22 | E56: 0.2212482663 | F56: 0.0683495778 | G56: 0.0683495778 | H56: 0.06888044702 | I56: -3.402197882 | J56: 490.6226768 | K56: 62.20592395 | L56: 0.01783878348 | M56: 1.068011039e-07 | N56: 19.75 | O56: 19.5 | P56: 0 | Q56: 0 | S56: 0.0005008053412 | U56: 0.1975 | V56: 0.195 | W56: 0 | X56: 0 | Y56: 7.072001384e-06 | Z56: 9.903604669e-13 | AA56: 3.307625551e-08 | AB56: 2.166413225e-17 | AC56: 5.889784251e-05 | AD56: 6.869219511e-11 | AE56: 9.942915812e-10 | AF56: 0.0002240797288 | AG56: 0.001806558288 | AH56: 6.462678905e-08 | AI56: 0 | AJ56: 0 | AK56: 0.0009514372425 | AL56: 1.79254025e-08 | AM56: 0.0005259739529 | AN56: 5.478190082e-09 | AO56: 0.006969130778 | AP56: 0.004469130778 | AQ56: 41 | AR56: 0.05686546463 | AS56: 0.04417008463 | AT56: 0.05554498373 | AU56: =IF(AO56 <$F$745,0.5*(1-GAMMADIST(ABS(AO56-$F$745),AF$11,AF$12,TRUE))-0.5*(1-GAMMADIST(ABS(AO55-$F$745),AF$11,AF$12,TRUE)),0.5*(GAMMADIST(ABS(AO56-$F$745),AF$11,AF$12,TRUE))-0.5*( GAMMADIST(ABS(AO55-$F$745),AF$11,AF$12,TRUE))) -> 0.05869581186 | AV56: =AM$12*(IF(AO56 <$F$745,0.5*(1-GAMMADIST(ABS(AO56-$F$745)^AI$10,AI$11,AI$12^AI$10,TRUE))-0.5*(1-GAMMADIST(ABS(AO55-$F$745)^AI$10,AI$11,AI$12^AI$10,TRUE)),0.5*(GAMMADIST(ABS(AO56-$F$745)^AI$10,AI$11,AI$12^AI$10,TRUE))-0.5*( GAMMADIST(ABS(AO55-$F$745)^AI$10,AI$11,AI$12^AI$10,TRUE))))+(1-AM$12)*(IF(AO56 <$F$745,0.5*(GAMMADIST(1/ABS(AO56-$F$745)^AK$10,AK$11,1/AK$12^AK$10,TRUE))-0.5*(GAMMADIST(1/ABS(AO55-$F$745)^AK$10,AK$11,1/AK$12^AK$10,TRUE)),0.5*((1-GAMMADIST(1/ABS(AO56-$F$745)^AK$10,AK$11,1/AK$12^AK$10,TRUE)))-0.5*( (1-GAMMADIST(1/ABS(AO55-$F$745)^AK$10,AK$11,1/AK$12^AK$10,TRUE))))) -> 0.05950471705 | AW56: =IF(AO56 <$F$745,0.5*(1-GAMMADIST(ABS(AO56-$F$745)^AI$2,AI$3,AI$4^AI$2,TRUE))-0.5*(1-GAMMADIST(ABS(AO55-$F$745)^AI$2,AI$3,AI$4^AI$2,TRUE)),0.5*(GAMMADIST(ABS(AO56-$F$745)^AI$2,AI$3,AI$4^AI$2,TRUE))-0.5*( GAMMADIST(ABS(AO55-$F$745)^AI$2,AI$3,AI$4^AI$2,TRUE))) -> 0.0585446747 | AX56: 0.05665248842 | AY56: 2.717784141e-05
A57: 1956-09-13T22:30:00 | B57: 3.38 | C57: 0.05 | D57: 0.05 | E57: 0.0512482663 | F57: 0.0149034055 | G57: 0.0149034055 | H57: 0.01543427472 | I57: -3.387294476 | J57: 440.4911472 | K57: 57.89283131 | L57: 0.01493697085 | M57: 1.3518153e-11 | N57: 20.25 | O57: 20 | P57: 0 | Q57: 0 | S57: 0.0004182073046 | U57: 0.2025 | V57: 0.2 | W57: 0 | X57: 0 | Y57: 4.331373813e-06 | Z57: 3.715009724e-13 | AA57: 1.514694214e-08 | AB57: 4.543165472e-18 | AC57: 4.680537937e-05 | AD57: 4.338106017e-11 | AE57: 6.941682608e-10 | AF57: 0.000187231133 | AG57: 0.001715228489 | AH57: 5.82575994e-08 | AI57: 0 | AJ57: 0 | AK57: 0.0008714518404 | AL57: 1.503818436e-08 | AM57: 0.0004817563879 | AN57: 4.595826084e-09 | AO57: 0.01196913078 | AP57: 0.009469130778 | AQ57: 48 | AR57: 0.0665742025 | AS57: 0.04335536248 | AT57: 0.05392179889 | AU57: 0.05667206726 | AV57: 0.05794856108 | AW57: 0.05520484119 | AX57: 0.05448167031 | AY57: 1.990816879e-05
A58: 1956-10-14T09:00:00 | B58: 3.34 | C58: -0.04 | D58: 0.04 | E58: 0.0387517337 | F58: -0.01190490251 | G58: 0.01190490251 | H58: 0.01137403328 | I58: -3.399199379 | J58: 480.2336217 | K58: 61.32464481 | L58: 0.01722006325 | M58: 2.165144913e-12 | N58: 20.75 | O58: 20.5 | P58: 0 | Q58: 0 | S58: 0.0003497470812 | U58: 0.2075 | V58: 0.205 | W58: 0 | X58: 0 | Y58: 2.62010475e-06 | Z58: 1.359395822e-13 | AA58: 6.80058343e-09 | AB58: 9.158006928e-19 | AC58: 3.719524634e-05 | AD58: 2.739576931e-11 | AE58: 4.845114291e-10 | AF58: 0.0001564219523 | AG58: 0.001630503337 | AH58: 5.264437888e-08 | AI58: 0 | AJ58: 0 | AK58: 0.0007998481229 | AL58: 1.266845584e-08 | AM58: 0.0004421723894 | AN58: 3.871612316e-09 | AO58: 0.01696913078 | AP58: 0.01446913078 | AQ58: 32 | AR58: 0.04438280166 | AS58: 0.04203074988 | AT58: 0.05132121373 | AU58: 0.0512782795 | AV58: 0.04754515649 | AW58: 0.05063773162 | AX58: 0.05110280099 | AY58: 1.453469561e-05
A59: 1956-11-13T19:30:00 | B59: 3.49 | C59: 0.15 | D59: 0.15 | E59: 0.1512482663 | F59: 0.04393092923 | G59: 0.04393092923 | H59: 0.04446179845 | I59: -3.35526845 | J59: 345.0602511 | K59: 49.19601849 | L59: 0.01000988067 | M59: 7.725420962e-09 | N59: 21.25 | O59: 21 | P59: 0 | Q59: 0 | S59: 0.0002929249636 | U59: 0.2125 | V59: 0.21 | W59: 0 | X59: 0 | Y59: 1.565385467e-06 | Z59: 4.852339924e-14 | AA59: 2.993504777e-09 | AB59: 1.774469476e-19 | AC59: 2.955802166e-05 | AD59: 1.730052762e-11 | AE59: 3.380936154e-10 | AF59: 0.0001306664746 | AG59: 0.001551768134 | AH59: 4.768285826e-08 | AI59: 0 | AJ59: 0 | AK59: 0.0007355835649 | AL59: 1.071451844e-08 | AM59: 0.0004066456283 | AN59: 3.274468655e-09 | AO59: 0.02196913078 | AP59: 0.01946913078 | AQ59: 29 | AR59: 0.04022191401 | AS59: 0.04024400383 | AT59: 0.04788974028 | AU59: 0.04524697434 | AV59: 0.04128086322 | AW59: 0.04561145044 | AX59: 0.04682374625 | AY59: 1.057692804e-05
A60: 1956-12-14T06:00:00 | B60: 3.59 | C60: 0.1 | D60: 0.1 | E60: 0.1012482663 | F60: 0.02825046629 | G60: 0.02825046629 | H60: 0.02878133551 | I60: -3.327017983 | J60: 273.9042561 | K60: 42.17604517 | L60: 0.006867967383 | M60: 5.684151607e-10 | N60: 21.75 | O60: 21.5 | P60: 0 | Q60: 0 | S60: 0.0002456953946 | U60: 0.2175 | V60: 0.215 | W60: 0 | X60: 0 | Y60: 9.237056342e-07 | Z60: 1.689568512e-14 | AA60: 1.291892371e-09 | AB60: 3.30492257e-20 | AC60: 2.348877188e-05 | AD60: 1.092519613e-11 | AE60: 2.358677641e-10 | AF60: 0.0001091390035 | AG60: 0.00147847757 | AH60: 4.328506784e-08 | AI60: 0 | AJ60: 0 | AK60: 0.0006777646394 | AL60: 9.096334782e-09 | AM60: 0.0003746821447 | AN60: 2.779934842e-09 | AO60: 0.02696913078 | AP60: 0.02446913078 | AQ60: 33 | AR60: 0.04576976422 | AS60: 0.03805791142 | AT60: 0.04381280508 | AU60: 0.03938758884 | AV60: 0.03978269742 | AW60: 0.0404991657 | AX60: 0.04199112451 | AY60: 7.672061123e-06
A61: 1957-01-13T16:30:00 | B61: 3.46 | C61: -0.13 | D61: 0.13 | E61: 0.1287517337 | F61: -0.03688361343 | G61: 0.03688361343 | H61: 0.03635274421 | I61: -3.363901597 | J61: 369.1867874 | K61: 51.46327655 | L61: 0.01118000385 | M61: 2.307933036e-09 | N61: 22.25 | O61: 22 | P61: 0 | Q61: 0 | S61: 0.0002063827207 | U61: 0.2225 | V61: 0.22 | W61: 0 | X61: 0 | Y61: 5.383386181e-07 | Z61: 5.73878154e-15 | AA61: 5.466194164e-10 | AB61: 5.916688839e-21 | AC61: 1.866564027e-05 | AD61: 6.89913122e-12 | AE61: 1.645142604e-10 | AF61: 9.114806717e-05 | AG61: 0.00141014658 | AH61: 3.937650253e-08 | AI61: 0 | AJ61: 0 | AK61: 0.000625622907 | AL61: 7.750574688e-09 | AM61: 0.0003458571293 | AN61: 2.368656512e-09 | AO61: 0.03196913078 | AP61: 0.02946913078 | AQ61: 26 | AR61: 0.03606102635 | AS61: 0.03554663101 | AT61: 0.03929819917 | AU61: 0.0339962769 | AV61: 0.03755005275 | AW61: 0.03552593811 | AX61: 0.03693792309 | AY61: 5.547312399e-06
A62: 1957-02-13T03:00:00 | B62: 3.34 | C62: -0.12 | D62: 0.12 | E62: 0.1187517337 | F62: -0.03529778208 | G62: 0.03529778208 | H62: 0.03476691286 | I62: -3.399199379 | J62: 480.2336217 | K62: 61.32464481 | L62: 0.01722006325 | M62: 1.766024704e-09 | N62: 22.75 | O62: 22.5 | P62: 0 | Q62: 0 | S62: 0.0001736127706 | U62: 0.2275 | V62: 0.225 | W62: 0 | X62: 0 | Y62: 3.09875416e-07 | Z62: 1.901441058e-15 | AA62: 2.267548371e-10 | AB62: 1.018173389e-21 | AC62: 1.483281546e-05 | AD62: 4.356681473e-12 | AE62: 1.147218637e-10 | AF62: 7.611474308e-05 | AG62: 0.001346342565 | AH62: 3.589382779e-08 | AI62: 0 | AJ62: 0 | AK62: 0.0005784953396 | AL62: 6.626868475e-09 | AM62: 0.0003198040469 | AN62: 2.025240166e-09 | AO62: 0.03696913078 | AP62: 0.03446913078 | AQ62: 26 | AR62: 0.03606102635 | AS62: 0.03279152893 | AT62: 0.03455868816 | AU62: 0.02917164866 | AV62: 0.03357577158 | AW62: 0.03083232568 | AX62: 0.03194556417 | AY62: 3.998432119e-06
A63: 1957-03-15T13:30:00 | B63: 3.41 | C63: 0.07 | D63: 0.07 | E63: 0.0712482663 | F63: 0.02074148431 | G63: 0.02074148431 | H63: 0.02127235353 | I63: -3.378457895 | J63: 412.5170428 | K63: 55.41507566 | L63: 0.01341051257 | M63: 9.266020398e-11 | N63: 23.25 | O63: 23 | P63: 0 | Q63: 0 | S63: 0.0001462572856 | U63: 0.2325 | V63: 0.23 | W63: 0 | X63: 0 | Y63: 1.761685382e-07 | Z63: 6.145614624e-16 | AA63: 9.222311803e-11 | AB63: 1.684178911e-22 | AC63: 1.178698692e-05 | AD63: 2.751149714e-12 | AE63: 7.998353288e-11 | AF63: 6.355445233e-05 | AG63: 0.001286678761 | AH63: 3.278301456e-08 | AI63: 0 | AJ63: 0 | AK63: 0.0005358080633 | AL63: 5.684956054e-09 | AM63: 0.0002962056481 | AN63: 1.7373819e-09 | AO63: 0.04196913078 | AP63: 0.03946913078 | AQ63: 27 | AR63: 0.0374479889 | AS63: 0.02987683657 | AT63: 0.02979578644 | AU63: 0.02492493719 | AV63: 0.02830016187 | AW63: 0.02650251948 | AX63: 0.02722459988 | AY63: 2.873102852e-06
A64: 1957-04-15 | B64: 3.48 | C64: 0.07 | D64: 0.07 | E64: 0.0712482663 | F64: 0.02032000249 | G64: 0.02032000249 | H64: 0.02085087171 | I64: -3.358137892 | J64: 352.9518422 | K64: 49.94326938 | L64: 0.01038689152 | M64: 8.217605671e-11 | N64: 23.75 | O64: 23.5 | P64: 0 | Q64: 0 | S64: 0.0001233887729 | U64: 0.2375 | V64: 0.235 | W64: 0 | X64: 0 | Y64: 9.891888575e-08 | Z64: 1.937613061e-16 | AA64: 3.67736952e-11 | AB64: 2.677831007e-23 | AC64: 9.366575161e-06 | AD64: 1.737281787e-12 | AE64: 5.575329201e-11 | AF64: 5.306167399e-05 | AG64: 0.001230808559 | AH64: 2.999781604e-08 | AI64: 0 | AJ64: 0 | AK64: 0.0004970628708 | AL64: 4.892504902e-09 | AM64: 0.0002747865138 | AN64: 1.495200558e-09 | AO64: 0.04696913078 | AP64: 0.04446913078 | AQ64: 18 | AR64: 0.02496532594 | AS64: 0.02688544818 | AT64: 0.02518636302 | AU64: 0.02122713759 | AV64: 0.02296792625 | AW64: 0.02258081266 | AX64: 0.02291201633 | AY64: 2.058183764e-06
A65: 1957-05-15T10:30:00 | B65: 3.6 | C65: 0.12 | D65: 0.12 | E65: 0.1212482663 | F65: 0.03390155168 | G65: 0.03390155168 | H65: 0.0344324209 | I65: -3.324236341 | J65: 267.5183209 | K65: 41.51792945 | L65: 0.006609213964 | M65: 1.666500125e-09 | N65: 24.25 | O65: 24 | P65: 0 | Q65: 0 | S65: 0.0001042438123 | U65: 0.2425 | V65: 0.24 | W65: 0 | X65: 0 | Y65: 5.48579675e-08 | Z65: 5.959201185e-17 | AA65: 1.437627795e-11 | AB65: 4.09262114e-24 | AC65: 7.443169345e-06 | AD65: 1.097044949e-12 | AE65: 3.885613057e-11 | AF65: 4.429711722e-05 | AG65: 0.001178420628 | AH65: 2.749851834e-08 | AI65: 0 | AJ65: 0 | AK65: 0.0004618259909 | AL65: 4.223430611e-09 | AM65: 0.0002553068464 | AN65: 1.290724472e-09 | AO65: 0.05196913078 | AP65: 0.04946913078 | AQ65: 8 | AR65: 0.01109570042 | AS65: 0.02389514515 | AT65: 0.02087320129 | AU65: 0.01803155943 | AV65: 0.01834225214 | AW65: 0.01908285747 | AX65: 0.01907983508 | AY65: 1.469959099e-06
A66: 1957-06-14T21:00:00 | B66: 3.8 | C66: 0.2 | D66: 0.2 | E66: 0.2012482663 | F66: 0.05406722127 | G66: 0.05406722127 | H66: 0.05459809049 | I66: -3.270169119 | J66: 163.4953502 | K66: 29.89993681 | L66: 0.002970091677 | M66: 2.648894881e-08 | N66: 24.75 | O66: 24.5 | P66: 0 | Q66: 0 | S66: 8.819321262e-05 | U66: 0.2475 | V66: 0.245 | W66: 0 | X66: 0 | Y66: 3.004760352e-08 | Z66: 1.787838568e-17 | AA66: 5.510258916e-12 | AB66: 6.012466004e-25 | AC66: 5.914720517e-06 | AD66: 6.927508673e-13 | AE66: 2.707515944e-11 | AF66: 3.697695974e-05 | AG66: 0.001129234711 | AH66: 2.525091155e-08 | AI66: 0 | AJ66: 0 | AK66: 0.0004297187018 | AL66: 3.656597281e-09 | AM66: 0.0002375572808 | AN66: 1.117494291e-09 | AO66: 0.05696913078 | AP66: 0.05446913078 | AQ66: 11 | AR66: 0.01525658807 | AS66: 0.02097547421 | AT66: 0.01695999247 | AU66: 0.01528527982 | AV66: 0.0145958244 | AW66: 0.01600399039 | AX66: 0.01574924879 | AY66: 1.046720009e-06
A67: 1957-07-15T07:30:00 | B67: 3.93 | C67: 0.13 | D67: 0.13 | E67: 0.1312482663 | F67: 0.03363835915 | G67: 0.03363835915 | H67: 0.03416922837 | I67: -3.23653076 | J67: 116.0001595 | K67: 23.78514067 | L67: 0.001700866397 | M67: 1.591516071e-09 | N67: 25.25 | O67: 25 | P67: 0 | Q67: =P67/722 -> 0 | S67: =1-LOGNORMDIST(N66,S$12,S$13) -> 0.0005152917354 | U67: 0.2525 | V67: 0.25 | W67: 2 | X67: =W67/721 -> 0.002773925104 | Y67: =2*( 1-NORMDIST($U66,Y$10,Y$11,TRUE)) -> 3.438327245e-08 | Z67: 1.523657372e-07 | AA67: =2*( 1-NORMDIST(U66,AA$10,AA$11,TRUE)) -> 3.257616399e-12 | AB67: 1.523695142e-07 | AC67: =2*(1-1/(1+EXP(-AC$11*U66))) -> 2.288809683e-05 | AD67: 1.498654379e-07 | AE67: 1.325908347e-07 | AF67: =(1-GAMMADIST(U66,AF$11,AF$12,TRUE)) -> 0.0001862935323 | AG67: =1-(1-GAMMADIST(1/U66,AG$11,1/AG$12,TRUE)) -> 0.04942845447 | AH67: 4.310188337e-05 | AI67: =(1-GAMMADIST($U66^AI$10,AI$11,AI$12^AI$10,TRUE)) -> 0 | AJ67: 1.523695145e-07 | AK67: =1-(1-GAMMADIST((1/U66)^AK$10,AK$11,(1/AK$12)^AK$10,TRUE)) -> 0.008150525271 | AL67: 5.724322645e-07 | AM67: 0.004505776948 | AN67: 5.939229327e-08 | AO67: 0.06196913078 | AP67: 0.05946913078 | AQ67: 7 | AR67: 0.009708737864 | AS67: 0.01818543209 | AT67: 0.01351061861 | AU67: 0.01293508777 | AV67: 0.01164783893 | AW67: 0.01332560201 | AX67: 0.01290578572 | AY67: =(1-GAMMADIST($U66^$AI$2,$AI$3,$AI$4^$AI$2,TRUE)) -> 2.504927502e-06
A68: 1957-08-14T18:00:00 | B68: 3.93 | C68: 0 | D68: 0 | E68: 0.001248266297 | F68: 0 | G68: 0 | H68: 0.0005308692216 | I68: -3.23653076 | J68: 116.0001595 | K68: 23.78514067 | L68: 0.001700866397 | M68: 2.238336005e-20 | U68: 0.2575 | AO68: 0.06696913078 | AP68: 0.06446913078 | AQ68: 3 | AR68: 0.004160887656 | AS68: 0.01557202821 | AT68: 0.01055207315 | AU68: 0.01093052014 | AV68: 0.009351959702 | AW68: 0.01102005185 | AX68: 0.01051277512
A69: 1957-09-14T04:30:00 | B69: 3.92 | C69: -0.01 | D69: 0.01 | E69: 0.008751733703 | F69: -0.002547772079 | G69: 0.002547772079 | H69: 0.002016902857 | I69: -3.239078532 | J69: 119.1876701 | K69: 24.21888919 | L69: 0.001777522767 | M69: 6.731469577e-17 | U69: 0.2625 | AG69: =(1-GAMMADIST(1/U69,AG$11,1/AG$12,TRUE))-(1-GAMMADIST(1/U68,AG$11,1/AG$12,TRUE)) -> 0.0009984796768 | AI69: 0 | AK69: =(1-GAMMADIST((1/U69)^AK$10,AK$11,(1/AK$12)^AK$10,TRUE))-(1-GAMMADIST((1/U68)^AK$10,AK$11,(1/AK$12)^AK$10,TRUE)) -> 0.0003490560857 | AM69: 0.0001929653381 | AO69: 0.07196913078 | AP69: 0.06946913078 | AQ69: 9 | AR69: 0.01248266297 | AS69: 0.01316971748 | AT69: 0.008080036529 | AU69: 0.009225302555 | AV69: 0.007565884445 | AW69: 0.009054434312 | AX69: 0.008521930806
A70: 1957-10-14T15:00:00 | B70: 3.97 | C70: 0.05 | D70: 0.05 | E70: 0.0512482663 | F70: 0.0126744409 | G70: 0.0126744409 | H70: 0.01320531012 | I70: -3.226404091 | J70: 103.9509356 | K70: 22.10814317 | L70: 0.001422828291 | M70: 5.302633714e-12 | U70: 0.2675 | AG70: 0.0009598033336 | AI70: 0 | AK70: 0.0003265300965 | AM70: 0.0001805125109 | AO70: 0.07696913078 | AP70: 0.07446913078 | AQ70: 9 | AR70: 0.01248266297 | AS70: 0.01100062736 | AT70: 0.006065991814 | AU70: 0.007777899523 | AV70: 0.006171270074 | AW70: 0.007393414221 | AX70: 0.006880905024
A71: 1957-11-14T01:30:00 | B71: 3.72 | C71: -0.25 | D71: 0.25 | E71: 0.2487517337 | F71: -0.06504242641 | G71: 0.06504242641 | H71: 0.06451155719 | I71: -3.291446518 | J71: 200.0606344 | K71: 34.20643081 | L71: 0.004121462326 | M71: 7.208172157e-08 | U71: 0.2725 | AG71: 0.0009232822546 | AI71: 0 | AK71: 0.0003058296675 | AM71: 0.0001690688906 | AO71: 0.08196913078 | AP71: 0.07946913078 | AQ71: 2 | AR71: 0.002773925104 | AS71: 0.009075449943 | AT71: 0.004464812984 | AU71: 0.006551567867 | AV71: 0.00507558219 | AW71: 0.006001305155 | AX71: 0.005538209829
A72: 1957-12-14T12:00:00 | B72: 3.21 | C72: -0.51 | D72: 0.51 | E72: 0.5087517337 | F72: -0.1474527311 | G72: 0.1474527311 | H72: 0.1469218619 | I72: -3.438899249 | J72: 630.6326811 | K72: 73.53898797 | L72: 0.02704247976 | M72: 1.005816002e-05 | U72: 0.2775 | AG72: 0.0008887610199 | AI72: 0 | AK72: 0.0002867779275 | AM72: 0.0001585366994 | AO72: 0.08696913078 | AP72: 0.08446913078 | AQ72: 3 | AR72: 0.004160887656 | AS72: 0.007394836799 | AT72: 0.003221941667 | AU72: 0.005514140586 | AV72: 0.004208367216 | AW72: 0.004843535832 | AX72: 0.004446099681
A73: 1958-01-13T22:30:00 | B73: 3.09 | C73: -0.12 | D73: 0.12 | E73: 0.1187517337 | F73: -0.03809984623 | G73: 0.03809984623 | H73: 0.03756897701 | I73: -3.476999095 | J73: 802.4648806 | K73: 86.35431097 | L73: 0.04047941335 | M73: 2.81174685e-09 | U73: 0.2825 | AG73: 0.0008560978748 | AI73: 0 | AK73: 0.0002692178329 | AM73: 0.0001488291202 | AO73: 0.09196913078 | AP73: 0.08946913078 | AQ73: 2 | AR73: 0.002773925104 | AS73: 0.005951120392 | AT73: 0.002279528432 | AU73: 0.004637674185 | AV73: 0.00351654272 | AW73: 0.003887628938 | AX73: 0.003562003905
A74: 1958-02-13T09:00:00 | B74: 3.05 | C74: -0.04 | D74: 0.04 | E74: 0.0387517337 | F74: -0.01302950029 | G74: 0.01302950029 | H74: 0.01249863107 | I74: -3.490028595 | J74: 867.7520602 | K74: 90.97675363 | L74: 0.04618926718 | M74: 3.812191364e-12 | U74: 0.2875 | AG74: 0.00082516332 | AI74: 0 | AK74: 0.0002530096552 | AM74: 0.0001398689083 | AO74: 0.09696913078 | AP74: 0.09446913078 | AQ74: 3 | AR74: 0.004160887656 | AS74: 0.004730190064 | AT74: 0.001581194456 | AU74: 0.00389803786 | AV74: 0.002960201382 | AW74: 0.003103799088 | AX74: 0.002849001873
A75: 1958-03-15T19:30:00 | B75: 2.98 | C75: -0.07 | D75: 0.07 | E75: 0.0687517337 | F75: -0.0232182901 | G75: 0.0232182901 | H75: 0.02268742088 | I75: -3.513246885 | J75: 992.6526378 | K75: 99.50957407 | L75: 0.05802798861 | M75: 1.363674649e-10 | U75: 0.2925 | AG75: 0.0007958388671 | AI75: 0 | AK75: 0.0002380288217 | AM75: 0.0001315871974 | AO75: 0.1019691308 | AP75: 0.09946913078 | AQ75: 3 | AR75: 0.004160887656 | AS75: 0.003713369432 | AT75: 0.001075321853 | AU75: 0.003274490351 | AV75: 0.002509270462 | AW75: 0.002465260417 | AX75: 0.002275713694
A76: 1958-04-15T06:00:00 | B76: 2.88 | C76: -0.1 | D76: 0.1 | E76: 0.0987517337 | F76: -0.03413300637 | G76: 0.03413300637 | H76: 0.03360213715 | I76: -3.547379892 | J76: 1196.798582 | K76: 112.7233907 | L76: 0.07994659248 | M76: 1.439465964e-09 | U76: 0.2975 | AG76: 0.0007680159397 | AI76: 0 | AK76: 0.0002241640563 | AM76: 0.0001239224717 | AO76: 0.1069691308 | AP76: 0.1044691308 | AQ76: 1 | AR76: 0.001386962552 | AS76: 0.002879170834 | AT76: 0.0007169759192 | AU76: 0.002749270529 | AV76: 0.002140977662 | AW76: 0.001948319433 | AX76: 0.00181586847
A77: 1958-05-15T16:30:00 | B77: 2.92 | C77: 0.04 | D77: 0.04 | E77: 0.0412482663 | F77: 0.01379332213 | G77: 0.01379332213 | H77: 0.01432419135 | I77: -3.53358657 | J77: 1111.308752 | K77: 107.2893193 | L77: 0.07038099304 | M77: 8.638148865e-12 | U77: 0.3025 | AG77: 0.0007415948989 | AI77: 0 | AK77: 0.0002113157729 | AM77: 0.0001168196781 | AO77: 0.1119691308 | AP77: 0.1094691308 | AQ77: 1 | AR77: 0.001386962552 | AS77: 0.002204836645 | AT77: 0.0004686877088 | AU77: 0.002307215719 | AV77: 0.001837970635 | AW77: 0.001532315098 | AX77: 0.001447723292
A78: 1958-06-15T03:00:00 | B78: 2.97 | C78: 0.05 | D78: 0.05 | E78: 0.0512482663 | F78: 0.01697833653 | G78: 0.01697833653 | H78: 0.01750920576 | I78: -3.516608233 | J78: 1011.659956 | K78: 100.7758276 | L78: 0.05993446146 | M78: 2.881367662e-11 | U78: 0.3075 | AG78: 0.0007164841794 | AI78: 0 | AK78: 0.0001993946856 | AM78: 0.0001102294574 | AO78: 0.1169691308 | AP78: 0.1144691308 | AQ78: 1 | AR78: 0.001386962552 | AS78: 0.001667612372 | AT78: 0.0003003830655 | AU78: 0.001935414398 | AV78: 0.001586934343 | AW78: 0.001199455851 | AX78: 0.001153440613
A79: 1958-07-15T13:30:00 | B79: 3.2 | C79: 0.23 | D79: 0.23 | E79: 0.2312482663 | F79: 0.07458885699 | G79: 0.07458885699 | H79: 0.07511972621 | I79: -3.442019376 | J79: 643.6645582 | K79: 74.54864102 | L79: 0.02797978679 | M79: 1.796900288e-07 | U79: 0.3125 | AG79: 0.0006925995201 | AI79: 0 | AK79: 0.000188320602 | AM79: 0.0001041074776 | AO79: 0.1219691308 | AP79: 0.1194691308 | AQ79: 0 | AR79: 0 | AS79: 0.001245728793 | AT79: 0.0001887470615 | AU79: 0.001622895436 | AV79: 0.001377576773 | AW79: 0.0009345925043 | AX79: 0.0009184862454
A80: 1958-08-15 | B80: 3.54 | C80: 0.34 | D80: 0.34 | E80: 0.3412482663 | F80: 0.1009759173 | G80: 0.1009759173 | H80: 0.1015067866 | I80: -3.341043459 | J80: 307.7721925 | K80: =($B80-$B$745)^4 -> 45.58475086 | L80: =($I80-$I$745)^6 -> 0.008304905813 | M80: 1.093882001e-06 | U80: 0.3175 | AG80: 0.0006698632795 | AI80: 0 | AK80: 0.0001780213743 | AM80: 9.841385405e-05 | AO80: 0.1269691308 | AP80: 0.1244691308 | AQ80: 1 | AR80: 0.001386962552 | AS80: 0.0009190975301 | AT80: 0.0001162780697 | AU80: 0.001360353401 | AV80: 0.001201883619 | AW80: 0.0007249566821 | AX80: 0.0007310803595
A81: 1958-09-14T10:30:00 | B81: 3.76 | C81: 0.22 | D81: 0.22 | E81: =ABS(C81-C$745) -> 0.2212482663 | F81: 0.06029223026 | G81: 0.06029223026 | H81: =ABS(F81-F$745) -> 0.06082309948 | I81: =LN(B81/100) -> -3.280751229 | J81: =(B81-$B$745)^6 -> 181.009802 | K81: 31.9988764 | L81: 0.003503509031 | M81: =(F81-F$745)^6 -> 5.063039146e-08 | U81: 0.3225 | AG81: 0.0006482038241 | AI81: 0 | AK81: 0.0001684319846 | AM81: =AM$12*AI81+(1-AM$12)*AK81 -> 9.311264346e-05 | AO81: 0.1319691308 | AP81: 0.1294691308 | AQ81: 2 | AR81: =AQ81/721 -> 0.002773925104 | AS81: =NORMDIST(AO81,F$745,F$747,TRUE)-NORMDIST(AO80,F$745,F$747,TRUE) -> 0.0006697448693 | AT81: =NORMDIST(AO81,F$745,AA$11,TRUE)-NORMDIST(AO80,F$745,AA$11,TRUE) -> 7.023090666e-05 | AU81: 0.001139907978 | AV81: 0.001053568417 | AW81: 0.0005598867365 | AX81: =1/(1+EXP(-$AC$11*(AO81-$F$745)))-1/(1+EXP(-$AC$11*(AO80-$F$745))) -> 0.0005817151173
A82: =A81+30.4375 -> 1958-10-14T21:00:00 | B82: 3.8 | C82: =B82-B81 -> 0.04 | D82: =ABS(C82) -> 0.04 | E82: 0.0412482663 | F82: 0.01058210933 | G82: =ABS(F82) -> 0.01058210933 | H82: 0.01111297855 | I82: -3.270169119 | J82: 163.4953502 | K82: 29.89993681 | L82: 0.002970091677 | M82: 1.883574737e-12 | U82: =U81+0.005 -> 0.3275 | AG82: 0.0006275549817 | AI82: 0 | AK82: 0.0001594937467 | AM82: 8.817140287e-05 | AO82: =AO81+0.005 -> 0.1369691308 | AP82: =AP81+0.005 -> 0.1344691308 | AQ82: 0 | AR82: 0 | AS82: 0.0004820220323 | AT82: 4.158833847e-05 | AU82: 0.0009548947281 | AV82: 0.0009276646681 | AW82: 0.0004305566907 | AX82: 0.0004627414816
A83: 1958-11-14T07:30:00 | B83: 3.74 | C83: -0.06 | D83: 0.06 | E83: 0.0587517337 | F83: =LN(B83/B82) -> -0.01591545531 | G83: 0.01591545531 | H83: 0.01538458608 | I83: -3.286084575 | J83: 190.3366714 | K83: 33.08884795 | L83: 0.003801208742 | M83: 1.325912599e-11 | U83: 0.3325 | AG83: 0.0006078555512 | AI83: =(GAMMADIST($U83^AI$10,AI$11,AI$12^AI$10,TRUE)-GAMMADIST($U82^AI$10,AI$11,AI$12^AI$10,TRUE)) -> 0 | AK83: 0.0001511536067 | AM83: 8.356080302e-05 | AO83: 0.1419691308 | AP83: 0.1394691308 | AQ83: 1 | AR83: 0.001386962552 | AS83: 0.0003426368582 | AT83: 2.414502634e-05 | AU83: 0.0007996841549 | AV83: 0.0008202214327 | AW83: 0.0003297187028 | AX83: 0.0003680216108
A84: 1958-12-14T18:00:00 | B84: 3.86 | C84: 0.12 | D84: 0.12 | E84: 0.1212482663 | F84: 0.03158157205 | G84: 0.03158157205 | H84: 0.03211244127 | I84: -3.254503003 | J84: 139.8853482 | K84: 26.94727279 | L84: 0.002305739758 | M84: 1.096579034e-09 | U84: 0.3375 | AG84: 0.0005890488636 | AI84: 0 | AK84: 0.00014336353 | AM84: 7.925428943e-05 | AO84: 0.1469691308 | AP84: 0.1444691308 | AQ84: 0 | AR84: 0 | AS84: 0.0002405531022 | AT84: 1.37434764e-05 | AU84: 0.000669525927 | AV84: 0.0007280746295 | AW84: 0.0002514655768 | AX84: 0.000292640272
A85: 1959-01-14T04:30:00 | B85: 4.02 | C85: 0.16 | D85: 0.16 | E85: 0.1612482663 | F85: 0.04061471915 | G85: 0.04061471915 | H85: 0.04114558838 | I85: -3.213888283 | J85: 90.37319344 | K85: 20.13846753 | L85: 0.001132520536 | M85: 4.852210824e-09 | U85: 0.3425 | AG85: 0.0005710823869 | AI85: 0 | AK85: 0.000136079963 | AM85: 7.522778469e-05 | AO85: 0.1519691308 | AP85: 0.1494691308 | AQ85: 0 | AR85: 0 | AS85: 0.000166800572 | AT85: 7.669698767e-06 | AU85: 0.0005604152751 | AV85: 0.0006486740489 | AW85: 0.0001910168561 | AX85: 0.0002326676072
A86: 1959-02-13T15:00:00 | B86: 3.96 | C86: -0.06 | D86: 0.06 | E86: 0.0587517337 | F86: -0.01503787736 | G86: 0.01503787736 | H86: 0.01450700814 | I86: -3.228926161 | J86: 106.8606515 | K86: 22.51879834 | L86: 0.001488247511 | M86: 9.321099178e-12 | U86: 0.3475 | AG86: 0.0005539073705 | AI86: 0 | AK86: 0.0001292633581 | AM86: 7.145942621e-05 | AO86: 0.1569691308 | AP86: 0.1544691308 | AQ86: 0 | AR86: 0 | AS86: 0.0001142335827 | AT86: 4.196360453e-06 | AU86: 0.0004689787509 | AV86: 0.0005799516115 | AW86: 0.0001445298406 | AX86: 0.0001849655698
A87: 1959-03-16T01:30:00 | B87: 3.99 | C87: 0.03 | D87: 0.03 | E87: 0.0312482663 | F87: 0.007547205635 | G87: 0.007547205635 | H87: 0.008078074857 | I87: -3.221378955 | J87: 98.32926632 | K87: 21.30370792 | L87: 0.001299608937 | M87: 2.778735695e-13 | U87: 0.3525 | AG87: 0.0005374785247 | AI87: 0 | AK87: 0.0001228777564 | AM87: 6.792933506e-05 | AO87: 0.1619691308 | AP87: 0.1594691308 | AQ87: 0 | AR87: 0 | AS87: 7.726801318e-05 | AT87: 2.251023454e-06 | AU87: 0.0003923767975 | AV87: 0.0005202203572 | AW87: 0.0001089353208 | AX87: 0.0001470308989
A88: 1959-04-15T12:00:00 | B88: 4.12 | C88: 0.13 | D88: 0.13 | E88: 0.1312482663 | F88: 0.03206193246 | G88: 0.03206193246 | H88: 0.03259280168 | I88: -3.189317023 | J88: 67.61372177 | K88: 16.59675672 | L88: 0.0007043338155 | M88: 1.198754263e-09 | U88: 0.3575 | AG88: 0.0005217537314 | AI88: 0 | AK88: 0.0001168904172 | AM88: 6.461941159e-05 | AO88: 0.1669691308 | AP88: 0.1644691308 | AQ88: 0 | AR88: 0 | AS88: 5.161968806e-05 | AT88: 1.183859037e-06 | AU88: 0.0003282208408 | AV88: 0.0004680964827 | AW88: 8.179679638e-05 | AX88: 0.0001168682973
A89: 1959-05-15T22:30:00 | B89: 4.31 | C89: 0.19 | D89: 0.19 | E89: 0.1912482663 | F89: 0.04508474075 | G89: 0.04508474075 | H89: 0.04561560998 | I89: -3.144232282 | J89: 37.36094055 | K89: 11.17579776 | L89: 0.0002634954732 | M89: 9.009089885e-09 | U89: 0.3625 | AG89: 0.0005066937825 | AI89: 0 | AK89: 0.0001112714915 | AM89: 6.151315465e-05 | AO89: 0.1719691308 | AP89: 0.1694691308 | AQ89: 0 | AR89: 0 | AS89: 3.405968966e-05 | AT89: 6.104255297e-07 | AU89: 0.0002745028699 | AV89: 0.0004224387775 | AW89: 6.119131061e-05 | AX89: 9.288835731e-05
A90: 1959-06-15T09:00:00 | B90: 4.34 | C90: 0.03 | D90: 0.03 | E90: 0.0312482663 | F90: 0.006936443997 | G90: 0.006936443997 | H90: 0.007467313218 | I90: -3.137295838 | J90: 33.83047772 | K90: 10.46017026 | L90: 0.0002230445282 | M90: 1.733748945e-13 | U90: 0.3675 | AG90: 0.0004922621431 | AI90: 0 | AK90: 0.0001059937318 | AM90: 5.859550123e-05 | AO90: 0.1769691308 | AP90: 0.1744691308 | AQ90: 1 | AR90: 0.001386962552 | AS90: 2.219604899e-05 | AT90: 3.085873277e-07 | AU90: 0.0002295357248 | AV90: 0.0003823012807 | AW90: 4.560969729e-05 | AX90: 7.382562626e-05
A91: 1959-07-15T19:30:00 | B91: 4.4 | C91: 0.06 | D91: 0.06 | E91: 0.0612482663 | F91: 0.01373019281 | G91: 0.01373019281 | H91: 0.01426106203 | I91: -3.123565645 | J91: 27.59868023 | K91: 9.132553177 | L91: 0.000158089048 | M91: 8.412231467e-12 | U91: 0.3725 | AG91: 0.0004784247366 | AI91: 0 | AK91: 0.0001010322345 | AM91: 5.585268412e-05 | AO91: 0.1819691308 | AP91: 0.1794691308 | AQ91: 1 | AR91: 0.001386962552 | AS91: 1.42863188e-05 | AT91: 1.529453125e-07 | AU91: 0.000191902535 | AV91: 0.0003468960467 | AW91: 3.387391481e-05 | AX91: 5.867297741e-05
A92: 1959-08-15T06:00:00 | B92: 4.43 | C92: 0.03 | D92: 0.03 | E92: 0.0312482663 | F92: 0.006795043133 | G92: 0.006795043133 | H92: 0.007325912354 | I92: -3.116770602 | J92: 24.86149475 | K92: 8.51827175 | L92: 0.0001323188086 | M92: 1.54586054e-13 | U92: 0.3775 | AG92: 0.0004651497497 | AI92: 0 | AK92: 9.636421078e-05 | AM92: 5.327210519e-05 | AO92: 0.1869691308 | AP92: 0.1844691308 | AQ92: 0 | AR92: 0 | AS92: 9.081857252e-06 | AT92: 7.432020876e-08 | AU92: 0.0001604139603 | AV92: 0.0003155636909 | AW92: 2.506916949e-05 | AX92: 4.66291284e-05
A93: 1959-09-14T16:30:00 | B93: 4.68 | C93: 0.25 | D93: 0.25 | E93: 0.2512482663 | F93: 0.05489852587 | G93: 0.05489852587 | H93: 0.05542939509 | I93: -3.061872076 | J93: 9.621616779 | K93: 4.523751119 | L93: 2.486112775e-05 | M93: 2.900286057e-08 | U93: 0.3825 | AG93: 0.0004524074556 | AI93: 0 | AK93: 9.196878254e-05 | AM93: 5.084222262e-05 | AO93: 0.1919691308 | AP93: 0.1894691308 | AQ93: 0 | AR93: 0 | AS93: 5.702150475e-06 | AT93: 3.540709681e-08 | AU93: 0.0001340720707 | AV93: 0.0002877499575 | AW93: 1.848865538e-05 | AX93: 3.705672854e-05
A94: 1959-10-15T03:00:00 | B94: 4.53 | C94: -0.15 | D94: 0.15 | E94: 0.1487517337 | F94: -0.03257617043 | G94: 0.03257617043 | H94: 0.03204530121 | I94: -3.094448246 | J94: 17.31225402 | K94: 6.692202552 | L94: 7.084332603e-05 | M94: 1.082894502e-09 | U94: 0.3875 | AG94: 0.0004401700523 | AI94: 0 | AK94: 8.782680038e-05 | AM94: 4.855245023e-05 | AP94: 0.1944691308 | AQ94: 0 | AR94: =AQ94/721 -> 0 | AS94: =1-NORMDIST(AO93,F$745,F$747,TRUE) -> 8.877580675e-06 | AT94: =1-NORMDIST(AO93,F$745,AA$11,TRUE) -> 3.011734673e-08 | AU94: =0.5*(1)-0.5*( GAMMADIST(ABS(AO93-$F$745),AF$11,AF$12,TRUE)) -> 0.000679492419 | AV94: =AM$12*(0.5*(1)-0.5*( GAMMADIST(ABS(AO93-$F$745)^AI$10,AI$11,AI$12^AI$10,TRUE)))+(1-AM$12)*(0.5*((1))-0.5*( (1-GAMMADIST(1/ABS(AO93-$F$745)^AK$10,AK$11,1/AK$12^AK$10,TRUE)))) -> 0.004233262458 | AW94: =0.5*(1)-0.5*( GAMMADIST(ABS(AO93-$F$745)^AI$2,AI$3,AI$4^AI$2,TRUE)) -> 4.968416636e-05 | AX94: =1-1/(1+EXP(-$AC$11*(AO93-$F$745))) -> 0.0001434216331
A95: 1959-11-14T13:30:00 | B95: 4.53 | C95: 0 | D95: 0 | E95: 0.001248266297 | F95: 0 | G95: 0 | H95: 0.0005308692216 | I95: -3.094448246 | J95: 17.31225402 | K95: 6.692202552 | L95: 7.084332603e-05 | M95: 2.238336005e-20 | U95: 0.3925 | AG95: 0.0004284115157 | AI95: 0 | AK95: 8.392068078e-05 | AM95: 4.639306748e-05
A96: 1959-12-15 | B96: 4.69 | C96: 0.16 | D96: 0.16 | E96: 0.1612482663 | F96: 0.03471064296 | G96: 0.03471064296 | H96: 0.03524151218 | I96: -3.059737604 | J96: 9.232496173 | K96: 4.400946518 | L96: 2.305468069e-05 | M96: 1.915698734e-09 | U96: 0.3975 | AG96: 0.0004171074656 | AI96: 0 | AK96: 8.023426055e-05 | AM96: 4.435513904e-05 | AR96: =AQ96/719 ->  | AS96: =NORMDIST(AO96,F$745,F$747,TRUE)-NORMDIST(AO95,F$745,F$747,TRUE) ->  | AU96: =IF(AO96 <0,0.5*(1-GAMMADIST(ABS(AO96-$F$745),AF$11,AF$12,TRUE))-0.5*(1-GAMMADIST(ABS(AO95-$F$745),AF$11,AF$12,TRUE)),0.5*(GAMMADIST(ABS(AO96-$F$745),AF$11,AF$12,TRUE))-0.5*( GAMMADIST(ABS(AO95-$F$745),AF$11,AF$12,TRUE))) ->  | AV96: =AM$12*(IF(AO96 <$F$745,0.5*(1-GAMMADIST(ABS(AO96-$F$745)^AI$10,AI$11,AI$12^AI$10,TRUE))-0.5*(1-GAMMADIST(ABS(AO95-$F$745)^AI$10,AI$11,AI$12^AI$10,TRUE)),0.5*(GAMMADIST(ABS(AO96-$F$745)^AI$10,AI$11,AI$12^AI$10,TRUE))-0.5*( GAMMADIST(ABS(AO95-$F$745)^AI$10,AI$11,AI$12^AI$10,TRUE))))+(1-AM$12)*(IF(AO96 <$F$745,0.5*(GAMMADIST(1/ABS(AO96-$F$745)^AK$10,AK$11,1/AK$12^AK$10,TRUE))-0.5*(GAMMADIST(1/ABS(AO95-$F$745)^AK$10,AK$11,1/AK$12^AK$10,TRUE)),0.5*((1-GAMMADIST(1/ABS(AO96-$F$745)^AK$10,AK$11,1/AK$12^AK$10,TRUE)))-0.5*( (1-GAMMADIST(1/ABS(AO95-$F$745)^AK$10,AK$11,1/AK$12^AK$10,TRUE))))) -> 
A97: 1960-01-14T10:30:00 | B97: 4.72 | C97: 0.03 | D97: 0.03 | E97: 0.0312482663 | F97: 0.006376217139 | G97: 0.006376217139 | H97: 0.006907086361 | I97: -3.053361386 | J97: 8.142919136 | K97: 4.04749898 | L97: 1.829634084e-05 | M97: 1.085848702e-13 | U97: 0.4025 | AG97: 0.0004062350434 | AI97: 0 | AK97: 7.675266632e-05 | AM97: 4.243044259e-05
A98: 1960-02-13T21:00:00 | B98: 4.49 | C98: -0.23 | D98: 0.23 | E98: 0.2287517337 | F98: -0.04995609784 | G98: 0.04995609784 | H98: 0.04942522862 | I98: -3.103317484 | J98: 20.06157962 | K98: 7.38317933 | L98: 9.15182146e-05 | M98: 1.457780448e-08 | U98: 0.4075 | AG98: 0.0003957727995 | AI98: 0 | AK98: 7.346219749e-05 | AM98: 4.061140417e-05
A99: 1960-03-15T07:30:00 | B99: 4.25 | C99: -0.24 | D99: 0.24 | E99: 0.2387517337 | F99: -0.05493371882 | G99: 0.05493371882 | H99: 0.0544028496 | I99: -3.158251203 | J99: 45.34764904 | K99: 12.71656605 | L99: 0.0003640781898 | M99: 2.592566414e-08 | U99: 0.4125 | AG99: 0.0003857005915 | AI99: 0 | AK99: 7.035022097e-05 | AM99: 3.889103995e-05
A100: 1960-04-14T18:00:00 | B100: 4.28 | C100: 0.03 | D100: 0.03 | E100: 0.0312482663 | F100: 0.007034026657 | G100: 0.007034026657 | H100: 0.007564895879 | I100: -3.151217176 | J100: 41.19323116 | K100: 11.92753151 | L100: 0.0003102299115 | M100: 1.87420775e-13 | U100: 0.4175 | AG100: 0.0003759994898 | AI100: 0 | AK100: 6.740507659e-05 | AM100: 3.726290394e-05
A101: 1960-05-15T04:30:00 | B101: 4.35 | C101: 0.07 | D101: 0.07 | E101: 0.0712482663 | F101: 0.01622283551 | G101: 0.01622283551 | H101: 0.01675370473 | I101: -3.134994341 | J101: 32.71736209 | K101: 10.22944772 | L101: 0.0002108260871 | M101: 2.211388987e-11 | U101: 0.4225 | AG101: 0.0003666516916 | AI101: 0 | AK101: 6.461599179e-05 | AM101: 3.572104086e-05
A102: 1960-06-14T15:00:00 | B102: 4.15 | C102: -0.2 | D102: 0.2 | E102: 0.1987517337 | F102: -0.04706751086 | G102: 0.04706751086 | H102: 0.04653664164 | I102: -3.182061852 | J102: 61.80360589 | K102: 15.63180791 | L102: 0.0006075958956 | M102: 1.01571118e-08 | U102: 0.4275 | AG102: 0.0003576404415 | AI102: 0 | AK102: 6.197300472e-05 | AM102: 3.42599436e-05
A103: 1960-07-15T01:30:00 | B103: 3.9 | C103: -0.25 | D103: 0.25 | E103: 0.2487517337 | F103: -0.06213178111 | G103: 0.06213178111 | H103: 0.06160091189 | I103: -3.244193633 | J103: 125.7819848 | K103: 25.10415623 | L103: 0.001940137584 | M103: 5.464152942e-08 | U103: 0.4325 | AG103: 0.000348949959 | AI103: 0 | AK103: 5.946689479e-05 | AM103: 3.287451481e-05
A104: 1960-08-14T12:00:00 | B104: 3.8 | C104: -0.1 | D104: 0.1 | E104: 0.0987517337 | F104: -0.0259754864 | G104: 0.0259754864 | H104: 0.02544461718 | I104: -3.270169119 | J104: 163.4953502 | K104: 29.89993681 | L104: 0.002970091677 | M104: 2.713785561e-10 | U104: 0.4375 | AG104: 0.0003405653714 | AI104: 0 | AK104: 5.708911983e-05 | AM104: 3.156003222e-05
A105: 1960-09-13T22:30:00 | B105: 3.8 | C105: 0 | D105: 0 | E105: 0.001248266297 | F105: 0 | G105: 0 | H105: 0.0005308692216 | I105: -3.270169119 | J105: 163.4953502 | K105: 29.89993681 | L105: 0.002970091677 | M105: 2.238336005e-20 | U105: 0.4425 | AG105: 0.0003324726523 | AI105: 0 | AK105: 5.483175931e-05 | AM105: 3.031211719e-05
A106: 1960-10-14T09:00:00 | B106: 3.89 | C106: 0.09 | D106: 0.09 | E106: 0.0912482663 | F106: 0.0234080909 | G106: 0.0234080909 | H106: 0.02393896012 | I106: -3.246761028 | J106: 129.1914447 | K106: 25.55578171 | L106: 0.002026316733 | M106: 1.882052298e-10 | U106: 0.4475 | AG106: 0.0003246585645 | AI106: 0 | AK106: 5.268746275e-05 | AM106: 2.912670622e-05
A107: 1960-11-13T19:30:00 | B107: 3.93 | C107: 0.04 | D107: 0.04 | E107: 0.0412482663 | F107: 0.01023026825 | G107: 0.01023026825 | H107: 0.01076113747 | I107: -3.23653076 | J107: 116.0001595 | K107: 23.78514067 | L107: 0.001700866397 | M107: 1.552919978e-12 | U107: 0.4525 | AG107: 0.0003171106075 | AI107: 0 | AK107: 5.064940302e-05 | AM107: 2.800002515e-05
A108: 1960-12-14T06:00:00 | B108: 3.84 | C108: -0.09 | D108: 0.09 | E108: 0.0887517337 | F108: -0.02316705928 | G108: 0.02316705928 | H108: 0.02263619006 | I108: -3.259697819 | J108: 147.4165152 | K108: 27.90598954 | L108: 0.002510666555 | M108: 1.345302628e-10 | U108: 0.4575 | AG108: 0.0003098169695 | AI108: 0 | AK108: 4.871123387e-05 | AM108: 2.692856563e-05
A109: 1961-01-13T16:30:00 | B109: 3.84 | C109: 0 | D109: 0 | E109: 0.001248266297 | F109: 0 | G109: 0 | H109: 0.0005308692216 | I109: -3.259697819 | J109: 147.4165152 | K109: 27.90598954 | L109: 0.002510666555 | M109: 2.238336005e-20 | U109: 0.4625 | AG109: 0.0003027664822 | AI109: 0 | AK109: 4.686705137e-05 | AM109: 2.590906385e-05
A110: 1961-02-13T03:00:00 | B110: 3.78 | C110: -0.06 | D110: 0.06 | E110: 0.0587517337 | F110: -0.01574835697 | G110: 0.01574835697 | H110: 0.01521748775 | I110: -3.275446176 | J110: 172.0669464 | K110: 30.9360576 | L110: 0.003226922235 | M110: 1.241817467e-11 | U110: 0.4675 | AG110: 0.0002959485793 | AI110: 0 | AK110: 4.511135871e-05 | AM110: 2.493848107e-05
A111: 1961-03-15T13:30:00 | B111: 3.74 | C111: -0.04 | D111: 0.04 | E111: 0.0387517337 | F111: -0.01063839821 | G111: 0.01063839821 | H111: 0.01010752898 | I111: -3.286084575 | J111: 190.3366714 | K111: 33.08884795 | L111: 0.003801208742 | M111: 1.06627683e-12 | U111: 0.4725 | AG111: 0.0002893532587 | AI111: 0 | AK111: 4.343903429e-05 | AM111: 2.401398595e-05
A112: 1961-04-15 | B112: 3.78 | C112: 0.04 | D112: 0.04 | E112: 0.0412482663 | F112: 0.01063839821 | G112: 0.01063839821 | H112: 0.01116926743 | I112: -3.275446176 | J112: 172.0669464 | K112: 30.9360576 | L112: 0.003226922235 | M112: 1.94154802e-12 | U112: 0.4775 | AG112: 0.0002829710461 | AI112: 0 | AK112: 4.184530245e-05 | AM112: 2.313293842e-05
A113: 1961-05-15T10:30:00 | B113: 3.71 | C113: -0.07 | D113: 0.07 | E113: 0.0687517337 | F113: -0.01869213301 | G113: 0.01869213301 | H113: 0.01816126379 | I113: -3.294138309 | J113: 205.0757041 | K113: 34.77572084 | L113: 0.004290521357 | M113: 3.588197996e-11 | U113: 0.4825 | AG113: 0.0002767929628 | AI113: 0 | AK113: 4.032570688e-05 | AM113: 2.229287493e-05
A114: 1961-06-14T21:00:00 | B114: 3.88 | C114: 0.17 | D114: 0.17 | E114: 0.1712482663 | F114: 0.04480327702 | G114: 0.04480327702 | H114: 0.04533414624 | I114: -3.249335032 | J114: 132.6775734 | K114: 26.01347354 | L114: 0.00211589668 | M114: 8.680658022e-09 | U114: 0.4875 | AG114: 0.0002708104948 | AI114: 0 | AK114: 3.887608624e-05 | AM114: 2.149149501e-05
A115: 1961-07-15T07:30:00 | B115: 3.92 | C115: 0.04 | D115: 0.04 | E115: 0.0412482663 | F115: 0.01025650017 | G115: 0.01025650017 | H115: 0.01078736939 | I115: -3.239078532 | J115: 119.1876701 | K115: 24.21888919 | L115: 0.001777522767 | M115: 1.575771721e-12 | U115: 0.4925 | AG115: 0.0002650155641 | AI115: 0 | AK115: 3.74925519e-05 | AM115: 2.072664896e-05
A116: 1961-08-14T18:00:00 | B116: 4.04 | C116: 0.12 | D116: 0.12 | E116: 0.1212482663 | F116: 0.03015303817 | G116: 0.03015303817 | H116: 0.03068390739 | I116: -3.208925494 | J116: 85.37317045 | K116: 19.38865159 | L116: 0.00103200148 | M116: 8.345723266e-10 | U116: 0.4975 | AG116: 0.0002594005028 | AI116: 0 | AK116: 3.61714676e-05 | AM116: 1.999632655e-05
A117: 1961-09-14T04:30:00 | B117: 3.98 | C117: -0.06 | D117: 0.06 | E117: 0.0587517337 | F117: -0.01496287268 | G117: 0.01496287268 | H117: 0.01443200346 | I117: -3.223888367 | J117: 101.1075456 | K117: 21.70313034 | L117: 0.00135997874 | M117: 9.035657179e-12 | U117: 0.5025 | AG117: 0.000253958028 | AI117: 0 | AK117: 3.490943072e-05 | AM117: 1.929864677e-05
A118: 1961-10-14T15:00:00 | B118: 3.92 | C118: -0.06 | D118: 0.06 | E118: 0.0587517337 | F118: -0.01519016549 | G118: 0.01519016549 | H118: 0.01465929627 | I118: -3.239078532 | J118: 119.1876701 | K118: 24.21888919 | L118: 0.001777522767 | M118: 9.923816691e-12 | U118: 0.5075 | AG118: 0.0002486812194 | AI118: 0 | AK118: 3.370325515e-05 | AM118: 1.863184827e-05
A119: 1961-11-14T01:30:00 | B119: 3.94 | C119: 0.02 | D119: 0.02 | E119: 0.0212482663 | F119: 0.005089069507 | G119: 0.005089069507 | H119: 0.005619938729 | I119: -3.233989463 | J119: 112.8840057 | K119: 23.35724456 | L119: 0.001627169226 | M119: 3.150572547e-14 | U119: 0.5125 | AG119: 0.0002435634974 | AI119: 0 | AK119: 3.254995564e-05 | AM119: 1.799428072e-05
A120: 1961-12-14T12:00:00 | B120: 4.06 | C120: 0.12 | D120: 0.12 | E120: 0.1212482663 | F120: 0.0300022503 | G120: 0.0300022503 | H120: 0.03053311953 | I120: -3.203987212 | J120: 80.60583241 | K120: 18.65997159 | L120: 0.0009394711913 | M120: 8.102649762e-10 | U120: 0.5175 | AG120: 0.000238598604 | AI120: 0 | AK120: 3.144673326e-05 | AM120: 1.738439685e-05
A121: 1962-01-13T22:30:00 | B121: 4.08 | C121: 0.02 | D121: 0.02 | E121: 0.0212482663 | F121: 0.004914014802 | G121: 0.004914014802 | H121: 0.005444884024 | I121: -3.199073198 | J121: 76.06243477 | K121: 17.95202656 | L121: 0.0008543641094 | M121: 2.605744335e-14 | U121: 0.5225 | AG121: 0.0002337805834 | AI121: 0 | AK121: 3.039096222e-05 | AM121: 1.680074504e-05
A122: 1962-02-13T09:00:00 | B122: 4.04 | C122: -0.04 | D122: 0.04 | E122: 0.0387517337 | F122: -0.009852296443 | G122: 0.009852296443 | H122: 0.009321427221 | I122: -3.208925494 | J122: 85.37317045 | K122: 19.38865159 | L122: 0.00103200148 | M122: 6.559858607e-13 | U122: 0.5275 | AG122: 0.0002291037653 | AI122: 0 | AK122: 2.938017759e-05 | AM122: 1.624196263e-05
A123: 1962-03-15T19:30:00 | B123: 3.93 | C123: -0.11 | D123: 0.11 | E123: 0.1087517337 | F123: -0.02760526609 | G123: 0.02760526609 | H123: 0.02707439687 | I123: -3.23653076 | J123: 116.0001595 | K123: 23.78514067 | L123: 0.001700866397 | M123: 3.938698561e-10 | U123: 0.5325 | AG123: 0.0002245627485 | AI123: 0 | AK123: 2.841206406e-05 | AM123: 1.570676969e-05
A124: 1962-04-15T06:00:00 | B124: 3.84 | C124: -0.09 | D124: 0.09 | E124: 0.0887517337 | F124: -0.02316705928 | G124: 0.02316705928 | H124: 0.02263619006 | I124: -3.259697819 | J124: 147.4165152 | K124: 27.90598954 | L124: 0.002510666555 | M124: 1.345302628e-10 | U124: 0.5375 | AG124: 0.0002201523858 | AI124: 0 | AK124: 2.748444559e-05 | AM124: 1.519396324e-05
A125: 1962-05-15T16:30:00 | B125: 3.87 | C125: 0.03 | D125: 0.03 | E125: 0.0312482663 | F125: 0.007782140442 | G125: 0.007782140442 | H125: 0.008313009664 | I125: -3.251915679 | J125: 136.2417441 | K125: 26.47728579 | L125: 0.002208996685 | M125: 3.300271828e-13 | U125: 0.5425 | AG125: 0.00021586777 | AI125: 0 | AK125: 2.659527585e-05 | AM125: 1.470241204e-05
A126: 1962-06-15T03:00:00 | B126: 3.91 | C126: 0.04 | D126: 0.04 | E126: 0.0412482663 | F126: 0.01028286696 | G126: 0.01028286696 | H126: 0.01081373618 | I126: -3.241632812 | J126: 122.4478389 | K126: 24.65854326 | L126: 0.00185724362 | M126: 1.599022664e-12 | U126: 0.5475 | AG126: 0.0002117042204 | AI126: 0 | AK126: 2.574262938e-05 | AM126: 1.423105164e-05
A127: 1962-07-15T13:30:00 | B127: 4.01 | C127: 0.1 | D127: 0.1 | E127: 0.1012482663 | F127: 0.02525386732 | G127: 0.02525386732 | H127: 0.02578473654 | I127: -3.216378945 | J127: 92.96326369 | K127: 20.52142784 | L127: 0.001185962878 | M127: 2.938841676e-10 | U127: 0.5525 | AG127: 0.0002076572707 | AI127: 0 | AK127: 2.492469343e-05 | AM127: 1.377887993e-05
A128: 1962-08-15 | B128: 3.98 | C128: -0.03 | D128: 0.03 | E128: 0.0287517337 | F128: -0.007509422022 | G128: 0.007509422022 | H128: 0.006978552801 | I128: -3.223888367 | J128: 101.1075456 | K128: 21.70313034 | L128: 0.00135997874 | M128: 1.155027203e-13 | U128: 0.5575 | AG128: 0.000203722657 | AI128: 0 | AK128: 2.413976045e-05 | AM128: 1.334495294e-05
A129: 1962-09-14T10:30:00 | B129: 3.98 | C129: 0 | D129: 0 | E129: 0.001248266297 | F129: 0 | G129: 0 | H129: 0.0005308692216 | I129: -3.223888367 | J129: 101.1075456 | K129: 21.70313034 | L129: 0.00135997874 | M129: 2.238336005e-20 | U129: 0.5625 | AG129: 0.0001998963076 | AI129: 0 | AK129: 2.338622111e-05 | AM129: 1.292838099e-05
A130: 1962-10-14T21:00:00 | B130: 3.93 | C130: -0.05 | D130: 0.05 | E130: 0.0487517337 | F130: -0.01264239342 | G130: 0.01264239342 | H130: 0.01211152419 | I130: -3.23653076 | J130: 116.0001595 | K130: 23.78514067 | L130: 0.001700866397 | M130: 3.156405608e-12 | U130: 0.5675 | AG130: 0.000196174332 | AI130: 0 | AK130: 2.266255783e-05 | AM130: 1.252832514e-05
A131: 1962-11-14T07:30:00 | B131: 3.92 | C131: -0.01 | D131: 0.01 | E131: 0.008751733703 | F131: -0.002547772079 | G131: 0.002547772079 | H131: 0.002016902857 | I131: -3.239078532 | J131: 119.1876701 | K131: 24.21888919 | L131: 0.001777522767 | M131: 6.731469577e-17 | U131: 0.5725 | AG131: 0.0001925530118 | AI131: 0 | AK131: 2.196733884e-05 | AM131: 1.214399388e-05
A132: 1962-12-14T18:00:00 | B132: 3.86 | C132: -0.06 | D132: 0.06 | E132: 0.0587517337 | F132: -0.01542447033 | G132: 0.01542447033 | H132: 0.0148936011 | I132: -3.254503003 | J132: 139.8853482 | K132: 26.94727279 | L132: 0.002305739758 | M132: 1.091436083e-11 | U132: 0.5775 | AG132: 0.0001890287916 | AI132: 0 | AK132: 2.129921261e-05 | AM132: 1.177464004e-05
A133: 1963-01-14T04:30:00 | B133: 3.83 | C133: -0.03 | D133: 0.03 | E133: 0.0287517337 | F133: -0.007802380284 | G133: 0.007802380284 | H133: 0.007271511063 | I133: -3.262305383 | J133: 151.3069543 | K133: 28.39482912 | L133: 0.002619116041 | M133: 1.478250434e-13 | U133: 0.5825 | AG133: =(1-GAMMADIST(1/U133,AG$11,1/AG$12,TRUE))-(1-GAMMADIST(1/U132,AG$11,1/AG$12,TRUE)) -> 0.0001855982705 | AI133: 0 | AK133: =(1-GAMMADIST((1/U133)^AK$10,AK$11,(1/AK$12)^AK$10,TRUE))-(1-GAMMADIST((1/U132)^AK$10,AK$11,(1/AK$12)^AK$10,TRUE)) -> 2.065690271e-05 | AM133: 1.1419558e-05
A134: 1963-02-13T15:00:00 | B134: 3.92 | C134: 0.09 | D134: 0.09 | E134: 0.0912482663 | F134: 0.02322685061 | G134: 0.02322685061 | H134: 0.02375771983 | I134: -3.239078532 | J134: 119.1876701 | K134: 24.21888919 | L134: 0.001777522767 | M134: 1.798160855e-10 | U134: 0.5875 | AG134: 0.0001822581942 | AI134: 0 | AK134: 2.003920308e-05 | AM134: 1.107808102e-05
A135: 1963-03-16T01:30:00 | B135: 3.93 | C135: 0.01 | D135: 0.01 | E135: 0.0112482663 | F135: 0.002547772079 | G135: 0.002547772079 | H135: 0.0030786413 | I135: -3.23653076 | J135: 116.0001595 | K135: 23.78514067 | L135: 0.001700866397 | M135: 8.514409764e-16 | U135: 0.5925 | AG135: 0.0001790054474 | AI135: 0 | AK135: 1.944497354e-05 | AM135: 1.074957878e-05
A136: 1963-04-15T12:00:00 | B136: 3.97 | C136: 0.04 | D136: 0.04 | E136: 0.0412482663 | F136: 0.01012666882 | G136: 0.01012666882 | H136: 0.01065753804 | I136: -3.226404091 | J136: 103.9509356 | K136: 22.10814317 | L136: 0.001422828291 | M136: 1.465349932e-12 | U136: 0.5975 | AG136: 0.0001758370469 | AI136: 0 | AK136: 1.887313573e-05 | AM136: 1.043345516e-05
A137: 1963-05-15T22:30:00 | B137: 3.93 | C137: -0.04 | D137: 0.04 | E137: 0.0387517337 | F137: -0.01012666882 | G137: 0.01012666882 | H137: 0.009595799596 | I137: -3.23653076 | J137: 116.0001595 | K137: 23.78514067 | L137: 0.001700866397 | M137: 7.807050995e-13 | U137: 0.6025 | AG137: 0.0001727501351 | AI137: 0 | AK137: 1.832266926e-05 | AM137: 1.012914604e-05
A138: 1963-06-15T09:00:00 | B138: 3.99 | C138: 0.06 | D138: 0.06 | E138: 0.0612482663 | F138: 0.01515180502 | G138: 0.01515180502 | H138: 0.01568267424 | I138: -3.221378955 | J138: 98.32926632 | K138: 21.30370792 | L138: 0.001299608937 | M138: 1.487718381e-11 | U138: 0.6075 | AG138: 0.0001697419732 | AI138: 0 | AK138: 1.779260815e-05 | AM138: 9.836117426e-06
A139: 1963-07-15T19:30:00 | B139: 4.02 | C139: 0.03 | D139: 0.03 | E139: 0.0312482663 | F139: 0.007490671729 | G139: 0.007490671729 | H139: 0.008021540951 | I139: -3.213888283 | J139: 90.37319344 | K139: 20.13846753 | L139: 0.001132520536 | M139: 2.664077347e-13 | U139: 0.6125 | AG139: 0.0001668099359 | AI139: 0 | AK139: 1.72820375e-05 | AM139: 9.553863534e-06
A140: 1963-08-15T06:00:00 | B140: 4 | C140: -0.02 | D140: 0.02 | E140: 0.0187517337 | F140: -0.004987541511 | G140: 0.004987541511 | H140: 0.004456672289 | I140: -3.218875825 | J140: 95.61489958 | K140: 20.90982423 | L140: 0.001241631774 | M140: 7.835454677e-15 | U140: 0.6175 | AG140: 0.0001639515058 | AI140: 0 | AK140: 1.679009042e-05 | AM140: 9.281905136e-06
A141: 1963-09-14T16:30:00 | B141: 4.08 | C141: 0.08 | D141: 0.08 | E141: 0.0812482663 | F141: 0.0198026273 | G141: 0.0198026273 | H141: 0.02033349652 | I141: -3.199073198 | J141: 76.06243477 | K141: 17.95202656 | L141: 0.0008543641094 | M141: 7.067607032e-11 | U141: 0.6225 | AG141: 0.0001611642677 | AI141: 0 | AK141: 1.631594515e-05 | AM141: 9.019787942e-06
A142: 1963-10-15T03:00:00 | B142: 4.11 | C142: 0.03 | D142: 0.03 | E142: 0.0312482663 | F142: 0.007326040092 | G142: 0.007326040092 | H142: 0.007856909314 | I142: -3.191747157 | J142: 69.64870898 | K142: 16.92811941 | L142: 0.0007394722022 | M142: 2.352396056e-13 | U142: 0.6275 | AG142: 0.000158445904 | AI142: 0 | AK142: 1.585882238e-05 | AM142: 8.767081129e-06
A143: 1963-11-14T13:30:00 | B143: 4.12 | C143: 0.01 | D143: 0.01 | E143: 0.0112482663 | F143: 0.002430134853 | G143: 0.002430134853 | H143: 0.002961004075 | I143: -3.189317023 | J143: 67.61372177 | K143: 16.59675672 | L143: 0.0007043338155 | M143: 6.739598583e-16 | U143: 0.6325 | AG143: 0.0001557941903 | AI143: 0 | AK143: 1.541798271e-05 | AM143: 8.523375949e-06
A144: 1963-12-15 | B144: 4.13 | C144: 0.01 | D144: 0.01 | E144: 0.0112482663 | F144: 0.002424243612 | G144: 0.002424243612 | H144: 0.002955112833 | I144: -3.186892779 | J144: 65.62852606 | K144: =($B144-$B$745)^4 -> 16.27028275 | L144: =($I144-$I$745)^6 -> 0.0006706781403 | M144: 6.659542693e-16 | U144: 0.6375 | AG144: 0.0001532069902 | AI144: 0 | AK144: 1.499272434e-05 | AM144: 8.288284435e-06
A145: 1964-01-14T10:30:00 | B145: 4.17 | C145: 0.04 | D145: 0.04 | E145: =ABS(C145-C$745) -> 0.0412482663 | F145: 0.009638628838 | G145: 0.009638628838 | H145: =ABS(F145-F$745) -> 0.01016949806 | I145: =LN(B145/100) -> -3.17725415 | J145: =(B145-$B$745)^6 -> 58.16628639 | K145: 15.01231119 | L145: 0.0005498052316 | M145: =(F145-F$745)^6 -> 1.106106913e-12 | U145: 0.6425 | AG145: 0.000150682252 | AI145: 0 | AK145: 1.458238091e-05 | AM145: =AM$12*AI145+(1-AM$12)*AK145 -> 8.061438198e-06
A146: =A145+30.4375 -> 1964-02-13T21:00:00 | B146: 4.15 | C146: =B146-B145 -> -0.02 | D146: =ABS(C146) -> 0.02 | E146: 0.0187517337 | F146: -0.004807701568 | G146: =ABS(F146) -> 0.004807701568 | H146: 0.004276832347 | I146: -3.182061852 | J146: 61.80360589 | K146: 15.63180791 | L146: 0.0006075958956 | M146: 6.119745427e-15 | U146: =U145+0.005 -> 0.6475 | AG146: 0.0001482180042 | AI146: 0 | AK146: 1.418631939e-05 | AM146: 7.842487294e-06 | AO146: =AO145+0.005 -> 
A147: 1964-03-15T07:30:00 | B147: 4.22 | C147: 0.07 | D147: 0.07 | E147: 0.0712482663 | F147: =LN(B147/B146) -> 0.01672679381 | G147: 0.01672679381 | H147: 0.01725766303 | I147: -3.165335058 | J147: 49.84550086 | K147: 13.54411532 | L147: 0.000425963968 | M147: 2.641751169e-11 | U147: 0.6525 | AG147: 0.0001458123519 | AI147: =(GAMMADIST($U147^AI$10,AI$11,AI$12^AI$10,TRUE)-GAMMADIST($U146^AI$10,AI$11,AI$12^AI$10,TRUE)) -> 0 | AK147: 1.380393822e-05 | AM147: 7.631099168e-06
A148: 1964-04-14T18:00:00 | B148: 4.23 | C148: 0.01 | D148: 0.01 | E148: 0.0112482663 | F148: 0.00236686501 | G148: 0.00236686501 | H148: 0.002897734232 | I148: -3.162968193 | J148: 48.30669993 | K148: 13.26391041 | L148: 0.0004043811958 | M148: 5.920403513e-16 | U148: 0.6575 | AG148: 0.0001434634734 | AI148: 0 | AK148: 1.343466551e-05 | AM148: 7.426957666e-06
A149: 1964-05-15T04:30:00 | B149: 4.2 | C149: -0.03 | D149: 0.03 | E149: 0.0287517337 | F149: -0.007117467769 | G149: 0.007117467769 | H149: 0.006586598547 | I149: -3.170085661 | J149: 53.04585694 | K149: 14.1178202 | L149: 0.0004721886039 | M149: 8.165206342e-14 | U149: 0.6625 | AG149: 0.0001411696166 | AI149: 0 | AK149: 1.307795736e-05 | AM149: 7.229762111e-06
A150: 1964-06-14T15:00:00 | B150: 4.17 | C150: -0.03 | D150: 0.03 | E150: 0.0287517337 | F150: -0.007168489479 | G150: 0.007168489479 | H150: 0.006637620257 | I150: -3.17725415 | J150: 58.16628639 | K150: 15.01231119 | L150: 0.0005498052316 | M150: 8.552132383e-14 | U150: 0.6675 | AG150: 0.0001389290962 | AI150: 0 | AK150: 1.27332963e-05 | AM150: 7.039226437e-06
A151: 1964-07-15T01:30:00 | B151: 4.19 | C151: 0.02 | D151: 0.02 | E151: 0.0212482663 | F151: 0.004784698123 | G151: 0.004784698123 | H151: 0.005315567345 | I151: -3.172469452 | J151: 54.70913323 | K151: 14.41141273 | L151: 0.0004969132653 | M151: 2.255785229e-14 | U151: 0.6725 | AG151: 0.0001367402903 | AI151: 0 | AK151: 1.240018984e-05 | AM151: 6.855078373e-06
A152: 1964-08-14T12:00:00 | B152: 4.19 | C152: 0 | D152: 0 | E152: 0.001248266297 | F152: 0 | G152: 0 | H152: 0.0005308692216 | I152: -3.172469452 | J152: 54.70913323 | K152: 14.41141273 | L152: 0.0004969132653 | M152: 2.238336005e-20 | U152: 0.6775 | AG152: 0.0001346016379 | AI152: 0 | AK152: 1.207816902e-05 | AM152: 6.677058687e-06
A153: 1964-09-13T22:30:00 | B153: 4.2 | C153: 0.01 | D153: 0.01 | E153: 0.0112482663 | F153: 0.002383791355 | G153: 0.002383791355 | H153: 0.002914660577 | I153: -3.170085661 | J153: 53.04585694 | K153: 14.1178202 | L153: 0.0004721886039 | M153: 6.130952069e-16 | U153: 0.6825 | AG153: 0.0001325116361 | AI153: 0 | AK153: 1.176678723e-05 | AM153: 6.504920467e-06
A154: 1964-10-14T09:00:00 | B154: 4.19 | C154: -0.01 | D154: 0.01 | E154: 0.008751733703 | F154: -0.002383791355 | G154: 0.002383791355 | H154: 0.001852922134 | I154: -3.172469452 | J154: 54.70913323 | K154: 14.41141273 | L154: 0.0004969132653 | M154: 4.04709142e-17 | U154: 0.6875 | AG154: 0.0001304688372 | AI154: 0 | AK154: 1.14656189e-05 | AM154: 6.338428457e-06
A155: 1964-11-13T19:30:00 | B155: 4.15 | C155: -0.04 | D155: 0.04 | E155: 0.0387517337 | F155: -0.009592399691 | G155: 0.009592399691 | H155: 0.00906153047 | I155: -3.182061852 | J155: 61.80360589 | K155: 15.63180791 | L155: 0.0006075958956 | M155: 5.536168893e-13 | U155: 0.6925 | AG155: 0.0001284718468 | AI155: 0 | AK155: 1.11742584e-05 | AM155: 6.177358421e-06
A156: 1964-12-14T06:00:00 | B156: 4.18 | C156: 0.03 | D156: 0.03 | E156: 0.0312482663 | F156: 0.007202912294 | G156: 0.007202912294 | H156: 0.007733781516 | I156: -3.174858939 | J156: 56.41564489 | K156: 14.70956076 | L156: 0.0005227704421 | M156: 2.13969264e-13 | U156: 0.6975 | AG156: 0.0001265193213 | AI156: 0 | AK156: 1.0892319e-05 | AM156: 6.021496558e-06
A157: 1965-01-13T16:30:00 | B157: 4.19 | C157: 0.01 | D157: 0.01 | E157: 0.0112482663 | F157: 0.002389487397 | G157: 0.002389487397 | H157: 0.002920356619 | I157: -3.172469452 | J157: 54.70913323 | K157: 14.41141273 | L157: 0.0004969132653 | M157: 6.203193534e-16 | U157: 0.7025 | AG157: 0.0001246099654 | AI157: 0 | AK157: 1.061943181e-05 | AM157: 5.870638941e-06
A158: 1965-02-13T03:00:00 | B158: 4.21 | C158: 0.02 | D158: 0.02 | E158: 0.0212482663 | F158: 0.00476191376 | G158: 0.00476191376 | H158: 0.005292782982 | I158: -3.167707538 | J158: 51.42493524 | K158: 13.82873653 | L158: 0.0004485528754 | M158: 2.198388901e-14 | U158: 0.7075 | AG158: 0.0001227425306 | AI158: 0 | AK158: 1.035524487e-05 | AM158: 5.724591001e-06
A159: 1965-03-15T13:30:00 | B159: 4.21 | C159: 0 | D159: 0 | E159: 0.001248266297 | F159: 0 | G159: 0 | H159: 0.0005308692216 | I159: -3.167707538 | J159: 51.42493524 | K159: 13.82873653 | L159: 0.0004485528754 | M159: 2.238336005e-20 | U159: 0.7125 | AG159: 0.0001209158128 | AI159: 0 | AK159: 1.009942225e-05 | AM159: 5.58316703e-06
A160: 1965-04-15 | B160: 4.2 | C160: -0.01 | D160: 0.01 | E160: 0.008751733703 | F160: -0.002378122405 | G160: 0.002378122405 | H160: 0.001847253183 | I160: -3.170085661 | J160: 53.04585694 | K160: 14.1178202 | L160: 0.0004721886039 | M160: 3.973365732e-17 | U160: 0.7175 | AG160: 0.0001191286503 | AI160: 0 | AK160: 9.851643232e-06 | AM160: 5.446189724e-06 | AV160: =AM$12*(IF(AO160 <$F$745,0.5*(1-GAMMADIST(ABS(AO160-$F$745)^AI$10,AI$11,AI$12^AI$10,TRUE))-0.5*(1-GAMMADIST(ABS(AO159-$F$745)^AI$10,AI$11,AI$12^AI$10,TRUE)),0.5*(GAMMADIST(ABS(AO160-$F$745)^AI$10,AI$11,AI$12^AI$10,TRUE))-0.5*( GAMMADIST(ABS(AO159-$F$745)^AI$10,AI$11,AI$12^AI$10,TRUE))))+(1-AM$12)*(IF(AO160 <$F$745,0.5*(GAMMADIST(1/ABS(AO160-$F$745)^AK$10,AK$11,1/AK$12^AK$10,TRUE))-0.5*(GAMMADIST(1/ABS(AO159-$F$745)^AK$10,AK$11,1/AK$12^AK$10,TRUE)),0.5*((1-GAMMADIST(1/ABS(AO160-$F$745)^AK$10,AK$11,1/AK$12^AK$10,TRUE)))-0.5*( (1-GAMMADIST(1/ABS(AO159-$F$745)^AK$10,AK$11,1/AK$12^AK$10,TRUE))))) -> 
A161: 1965-05-15T10:30:00 | B161: 4.21 | C161: 0.01 | D161: 0.01 | E161: 0.0112482663 | F161: 0.002378122405 | G161: 0.002378122405 | H161: 0.002908991627 | I161: -3.167707538 | J161: 51.42493524 | K161: 13.82873653 | L161: 0.0004485528754 | M161: 6.059751667e-16 | U161: 0.7225 | AG161: 0.0001173799225 | AI161: 0 | AK161: 9.611601492e-06 | AM161: 5.313489744e-06
A162: 1965-06-14T21:00:00 | B162: 4.21 | C162: 0 | D162: 0 | E162: 0.001248266297 | F162: 0 | G162: 0 | H162: 0.0005308692216 | I162: -3.167707538 | J162: 51.42493524 | K162: 13.82873653 | L162: 0.0004485528754 | M162: 2.238336005e-20 | U162: 0.7275 | AG162: 0.0001156685479 | AI162: 0 | AK162: 9.379004385e-06 | AM162: 5.18490531e-06
A163: 1965-07-15T07:30:00 | B163: 4.2 | C163: -0.01 | D163: 0.01 | E163: 0.008751733703 | F163: -0.002378122405 | G163: 0.002378122405 | H163: 0.001847253183 | I163: -3.170085661 | J163: 53.04585694 | K163: 14.1178202 | L163: 0.0004721886039 | M163: 3.973365732e-17 | U163: 0.7325 | AG163: 0.0001139934825 | AI163: 0 | AK163: 9.153572237e-06 | AM163: 5.060281811e-06
A164: 1965-08-14T18:00:00 | B164: 4.25 | C164: 0.05 | D164: 0.05 | E164: 0.0512482663 | F164: 0.01183445765 | G164: 0.01183445765 | H164: 0.01236532687 | I164: -3.158251203 | J164: 45.34764904 | K164: 12.71656605 | L164: 0.0003640781898 | M164: 3.574650666e-12 | U164: 0.7375 | AG164: 0.0001123537181 | AI164: 0 | AK164: 8.935037684e-06 | AM164: 4.939471444e-06
A165: 1965-09-14T04:30:00 | B165: 4.29 | C165: 0.04 | D165: 0.04 | E165: 0.0412482663 | F165: 0.009367750004 | G165: 0.009367750004 | H165: 0.009898619225 | I165: -3.148883453 | J165: 39.88103189 | K165: 11.67286845 | L165: 0.0002939041807 | M165: 9.406925622e-13 | U165: 0.7425 | AG165: 0.0001107482813 | AI165: 0 | AK165: 8.723145058e-06 | AM165: 4.822332869e-06
A166: 1965-10-14T15:00:00 | B166: 4.35 | C166: 0.06 | D166: 0.06 | E166: 0.0612482663 | F166: 0.01388911216 | G166: 0.01388911216 | H166: 0.01441998138 | I166: -3.134994341 | J166: 32.71736209 | K166: 10.22944772 | L166: 0.0002108260871 | M166: 8.990590105e-12 | U166: 0.7475 | AG166: 0.0001091762314 | AI166: 0 | AK166: 8.517649798e-06 | AM166: 4.70873089e-06
A167: 1965-11-14T01:30:00 | B167: 4.45 | C167: 0.1 | D167: 0.1 | E167: 0.1012482663 | F167: 0.02272825108 | G167: 0.02272825108 | H167: 0.0232591203 | I167: -3.11226609 | J167: 23.16550651 | K167: 8.126331481 | L167: 0.0001172461553 | M167: 1.583287232e-10 | U167: 0.7525 | AG167: 0.0001076366599 | AI167: 0 | AK167: 8.318317899e-06 | AM167: 4.598536142e-06
A168: 1965-12-14T12:00:00 | B168: 4.62 | C168: 0.17 | D168: 0.17 | E168: 0.1712482663 | F168: 0.03749060892 | G168: 0.03749060892 | H168: 0.03802147814 | I168: -3.074775481 | J168: 12.25478683 | K168: 5.315414958 | L168: 3.848178151e-05 | M168: 3.021161766e-09 | U168: 0.7575 | AG168: 0.0001061286886 | AI168: 0 | AK168: 8.124925387e-06 | AM168: 4.491624809e-06
A169: 1966-01-13T22:30:00 | B169: 4.61 | C169: -0.01 | D169: 0.01 | E169: 0.008751733703 | F169: -0.002166848085 | G169: 0.002166848085 | H169: 0.001635978864 | I169: -3.076942329 | J169: 12.74708376 | K169: 5.456831703 | L169: 4.12861932e-05 | M169: 1.917194305e-17 | U169: 0.7625 | AG169: 0.0001046514683 | AI169: 0 | AK169: 7.937257831e-06 | AM169: 4.387878348e-06
A170: 1966-02-13T09:00:00 | B170: 4.83 | C170: 0.22 | D170: 0.22 | E170: 0.2212482663 | F170: 0.04661861066 | G170: 0.04661861066 | H170: 0.04714947988 | I170: -3.030323718 | J170: 5.016836787 | K170: 2.930578202 | L170: 7.303483504e-06 | M170: 1.098655255e-08 | U170: 0.7675 | AG170: 0.0001032041785 | AI170: 0 | AK170: 7.755109875e-06 | AM170: 4.287183236e-06
A171: 1966-03-15T19:30:00 | B171: 4.87 | C171: 0.04 | D171: 0.04 | E171: 0.0412482663 | F171: 0.00824746943 | G171: 0.00824746943 | H171: 0.008778338652 | I171: -3.022076249 | J171: 4.16412485 | K171: 2.588307246 | L171: 5.063895156e-06 | M171: 4.575873254e-13 | U171: 0.7725 | AG171: 0.0001017860252 | AI171: 0 | AK171: 7.5782848e-06 | AM171: 4.189430721e-06
A172: 1966-04-15T06:00:00 | B172: 4.75 | C172: -0.12 | D172: 0.12 | E172: 0.1187517337 | F172: -0.02494931905 | G172: 0.02494931905 | H172: 0.02441844983 | I172: -3.047025568 | J172: 7.162673461 | K172: 3.715780931 | L172: 1.440856573e-05 | M172: 2.119866634e-10 | U172: 0.7775 | AG172: 0.0001003962406 | AI172: 0 | AK172: 7.406594106e-06 | AM172: 4.094516596e-06
A173: 1966-05-15T16:30:00 | B173: 4.78 | C173: 0.03 | D173: 0.03 | E173: 0.0312482663 | F173: 0.006295928457 | G173: 0.006295928457 | H173: 0.006826797678 | I173: -3.040729639 | J173: 6.282800713 | K173: 3.404882972 | L173: 1.125303061e-05 | M173: 1.012283581e-13 | U173: 0.7825 | AG173: 9.903408187e-05 | AI173: 0 | AK173: 7.23985712e-06 | AM173: 4.002340982e-06
A174: 1966-06-15T03:00:00 | B174: 4.81 | C174: 0.03 | D174: 0.03 | E174: 0.0312482663 | F174: 0.006256537614 | G174: 0.006256537614 | H174: 0.006787406836 | I174: -3.034473102 | J174: 5.494904647 | K174: 3.113915145 | L174: 8.710048665e-06 | M174: 9.777397888e-14 | U174: 0.7875 | AG174: 9.769883002e-05 | AI174: 0 | AK174: 7.077900622e-06 | AM174: 3.91280812e-06
A175: 1966-07-15T13:30:00 | B175: 5.02 | C175: 0.21 | D175: 0.21 | E175: 0.2112482663 | F175: 0.04273284959 | G175: 0.04273284959 | H175: 0.04326371881 | I175: -2.991740252 | J175: 1.956894717 | K175: 1.564509869 | L175: 1.04318254e-06 | M175: 6.557572238e-09 | U175: 0.7925 | AG175: 9.638978924e-05 | AI175: 0 | AK175: 6.920558497e-06 | AM175: 3.825826178e-06 | AO175: =AO174+0.0075 -> 
A176: 1966-08-15 | B176: 5.22 | C176: 0.2 | D176: 0.2 | E176: 0.2012482663 | F176: 0.03906746819 | G176: 0.03906746819 | H176: 0.03959833741 | I176: -2.952672784 | J176: 0.6000292026 | K176: 0.711401743 | L176: 5.484787907e-08 | M176: 3.855331363e-09 | U176: 0.7975 | AG176: 9.51062859e-05 | AI176: 0 | AK176: 6.767671398e-06 | AM176: 3.741307065e-06
A177: 1966-09-14T10:30:00 | B177: 5.18 | C177: -0.04 | D177: 0.04 | E177: 0.0387517337 | F177: -0.007692345623 | G177: 0.007692345623 | H177: 0.007161476402 | I177: -2.96036513 | J177: 0.7749305005 | K177: 0.8436749797 | L177: 1.110711291e-07 | M177: 1.34901069e-13 | U177: 0.8025 | AG177: 9.38476677e-05 | AI177: 0 | AK177: 6.619086429e-06 | AM177: 3.659166257e-06
A178: 1966-10-14T21:00:00 | B178: 5.01 | C178: -0.17 | D178: 0.17 | E178: 0.1687517337 | F178: -0.03336914117 | G178: 0.03336914117 | H178: 0.03283827195 | I178: -2.993734271 | J178: 2.064253894 | K178: 1.621220456 | L178: 1.173412789e-06 | M178: 1.253954479e-09 | U178: 0.8075 | AG178: 9.261330291e-05 | AI178: 0 | AK178: 6.47465685e-06 | AM178: 3.579322634e-06
A179: 1966-11-14T07:30:00 | B179: 5.16 | C179: 0.15 | D179: 0.15 | E179: 0.1512482663 | F179: 0.0295006644 | G179: 0.0295006644 | H179: 0.03003153362 | I179: -2.964233606 | J179: 0.8771643205 | K179: 0.9163343606 | L179: 1.538446286e-07 | M179: 7.336097001e-10 | U179: 0.8125 | AG179: 9.140257955e-05 | AI179: 0 | AK179: 6.33424179e-06 | AM179: 3.501698319e-06
A180: 1966-12-14T18:00:00 | B180: 4.84 | C180: -0.32 | D180: 0.32 | E180: 0.3187517337 | F180: -0.06402185876 | G180: 0.06402185876 | H180: 0.06349098954 | I180: -3.028255465 | J180: 4.791127172 | K180: 2.842006929 | L180: 6.676490616e-06 | M180: 6.550471706e-08 | U180: 0.8175 | AG180: 9.021490472e-05 | AI180: 0 | AK180: 6.197705979e-06 | AM180: 3.426218532e-06
A181: 1967-01-14T04:30:00 | B181: 4.58 | C181: -0.26 | D181: 0.26 | E181: 0.2587517337 | F181: -0.0552157226 | G181: 0.0552157226 | H181: 0.05468485338 | I181: -3.083471188 | J181: 14.32394091 | K181: 5.898048606 | L181: 5.07861591e-05 | M181: 2.674251895e-08 | U181: 0.8225 | AG181: 8.904970384e-05 | AI181: 0 | AK181: 6.064919493e-06 | AM181: 3.352811449e-06
A182: 1967-02-13T15:00:00 | B182: 4.63 | C182: 0.05 | D182: 0.05 | E182: 0.0512482663 | F182: 0.01085786997 | G182: 0.01085786997 | H182: 0.01138873919 | I182: -3.072613318 | J182: 11.77843684 | K182: 5.176764855 | L182: 3.584349246e-05 | M182: 2.181995675e-12 | U182: 0.8275 | AG182: 8.790642e-05 | AI182: 0 | AK182: 5.935757512e-06 | AM182: 3.281408066e-06
A183: 1967-03-16T01:30:00 | B183: 4.54 | C183: -0.09 | D183: 0.09 | E183: 0.0887517337 | F183: -0.01962985604 | G183: 0.01962985604 | H183: 0.01909898682 | I183: -3.092243174 | J183: 16.67638785 | K183: 6.527316298 | L183: 6.635864834e-05 | M183: 4.853577566e-11 | U183: 0.8325 | AG183: 8.678451332e-05 | AI183: 0 | AK183: 5.810100089e-06 | AM183: 3.211942075e-06
A184: 1967-04-15T12:00:00 | B184: 4.59 | C184: 0.05 | D184: 0.05 | E184: 0.0512482663 | F184: 0.01095301202 | G184: 0.01095301202 | H184: 0.01148388124 | I184: -3.081290162 | J184: 13.78122387 | K184: 5.748111606 | L184: 4.742899e-05 | M184: 2.293676452e-12 | U184: 0.8375 | AG184: 8.568346032e-05 | AI184: 0 | AK184: 5.687831935e-06 | AM184: 3.14434974e-06 | AO184: =AO183+0.0075 -> 
A185: 1967-05-15T22:30:00 | B185: 4.85 | C185: 0.26 | D185: 0.26 | E185: 0.2612482663 | F185: 0.05509868088 | G185: 0.05509868088 | H185: 0.0556295501 | I185: -3.026191481 | J185: 4.573944083 | K185: 2.755458666 | L185: 6.096164904e-06 | M185: 2.963693487e-08 | U185: 0.8425 | AG185: 8.460275334e-05 | AI185: 0 | AK185: 5.568842209e-06 | AM185: 3.078569788e-06
A186: 1967-06-15T09:00:00 | B186: 5.02 | C186: 0.17 | D186: 0.17 | E186: 0.1712482663 | F186: 0.03445122875 | G186: 0.03445122875 | H186: 0.03498209798 | I186: -2.991740252 | J186: 1.956894717 | K186: 1.564509869 | L186: 1.04318254e-06 | M186: 1.832631347e-09 | U186: 0.8475 | AG186: 8.354189996e-05 | AI186: 0 | AK186: 5.453024322e-06 | AM186: 3.014543293e-06
A187: 1967-07-15T19:30:00 | B187: 5.16 | C187: 0.14 | D187: 0.14 | E187: 0.1412482663 | F187: 0.02750664579 | G187: 0.02750664579 | H187: 0.02803751501 | I187: -2.964233606 | J187: 0.8771643205 | K187: 0.9163343606 | L187: 1.538446286e-07 | M187: 4.857771859e-10 | U187: 0.8525 | AG187: 8.250042246e-05 | AI187: 0 | AK187: 5.340275751e-06 | AM187: 2.952213578e-06
A188: 1967-08-15T06:00:00 | B188: 5.28 | C188: 0.12 | D188: 0.12 | E188: 0.1212482663 | F188: 0.02298951822 | G188: 0.02298951822 | H188: 0.02352038745 | I188: -2.941244088 | J188: 0.4000534982 | K188: 0.5429319277 | L188: 1.602468275e-08 | M188: 1.69303848e-10 | U188: 0.8575 | AG188: 8.147785731e-05 | AI188: 0 | AK188: 5.230497861e-06 | AM188: 2.891526117e-06
A189: 1967-09-14T16:30:00 | B189: 5.3 | C189: 0.02 | D189: 0.02 | E189: 0.0212482663 | F189: 0.00378072284 | G189: 0.00378072284 | H189: 0.004311592061 | I189: -2.937463365 | J189: 0.3472857432 | K189: 0.4940732071 | L189: 1.001851987e-08 | M189: 6.424302492e-15 | U189: 0.8625 | AG189: 8.047375467e-05 | AI189: 0 | AK189: 5.123595736e-06 | AM189: 2.832428438e-06
A190: 1967-10-15T03:00:00 | B190: 5.48 | C190: 0.18 | D190: 0.18 | E190: 0.1812482663 | F190: 0.0333982804 | G190: 0.0333982804 | H190: 0.03392914962 | I190: -2.904065085 | J190: 0.08145403846 | K190: 0.1879064759 | L190: 4.898365604e-12 | M190: 1.525590057e-09 | U190: 0.8675 | AG190: 7.948767788e-05 | AI190: 0 | AK190: 5.019478017e-06 | AM190: 2.774870035e-06
A191: 1967-11-14T13:30:00 | B191: 5.75 | C191: 0.27 | D191: 0.27 | E191: 0.2712482663 | F191: 0.04809475385 | G191: 0.04809475385 | H191: 0.04862562307 | I191: -2.855970331 | J191: 0.003432659487 | K191: 0.02275554019 | L191: 1.8581544e-09 | M191: 1.32187709e-08 | U191: 0.8725 | AG191: 7.851920303e-05 | AI191: 0 | AK191: 4.918056751e-06 | AM191: 2.718802286e-06
A192: 1967-12-15 | B192: 5.7 | C192: -0.05 | D192: 0.05 | E192: 0.0487517337 | F192: -0.008733679969 | G192: 0.008733679969 | H192: 0.008202810747 | I192: -2.864704011 | J192: 0.007098780651 | K192: 0.03693650829 | L192: 3.331355942e-10 | M192: 3.04632441e-13 | U192: 0.8775 | AG192: 7.756791853e-05 | AI192: 0 | AK192: 4.819247244e-06 | AM192: 2.664178371e-06
A193: 1968-01-14T10:30:00 | B193: 5.53 | C193: -0.17 | D193: 0.17 | E193: 0.1687517337 | F193: -0.03027835931 | G193: 0.03027835931 | H193: 0.02974749008 | I193: -2.89498237 | J193: 0.05071153517 | K193: 0.1370054485 | L193: 3.793681573e-15 | M193: 6.929501141e-10 | U193: 0.8825 | AG193: 7.663342464e-05 | AI193: 0 | AK193: 4.722967926e-06 | AM193: 2.610953196e-06
A194: 1968-02-13T21:00:00 | B194: 5.56 | C194: 0.03 | D194: 0.03 | E194: 0.0312482663 | F194: 0.005410292728 | G194: 0.005410292728 | H194: 0.00594116195 | I194: -2.889572078 | J194: 0.03744033746 | K194: 0.1119162551 | L194: 9.72859613e-18 | M194: 4.397727808e-14 | U194: 0.8875 | AG194: 7.57153331e-05 | AI194: 0 | AK194: 4.629140214e-06 | AM194: 2.559083319e-06
A195: 1968-03-15T07:30:00 | B195: 5.74 | C195: 0.18 | D195: 0.18 | E195: 0.1812482663 | F195: 0.03186110207 | G195: 0.03186110207 | H195: 0.03239197129 | I195: -2.857710976 | J195: 0.003998273468 | K195: 0.0251911695 | L195: 1.368991872e-09 | M195: 1.155112472e-09 | U195: 0.8925 | AG195: 7.481326675e-05 | AI195: 0 | AK195: 4.537688389e-06 | AM195: 2.508526882e-06
A196: 1968-04-14T18:00:00 | B196: 5.64 | C196: -0.1 | D196: 0.1 | E196: 0.0987517337 | F196: -0.01757514482 | G196: 0.01757514482 | H196: 0.0170442756 | I196: -2.87528612 | J196: 0.01532616311 | K196: 0.06170053959 | L196: 1.524732662e-11 | M196: 2.45172236e-11 | U196: 0.8975 | AG196: 7.392685909e-05 | AI196: 0 | AK196: 4.448539478e-06 | AM196: 2.459243542e-06
A197: 1968-05-15T04:30:00 | B197: 5.87 | C197: 0.23 | D197: 0.23 | E197: 0.2312482663 | F197: 0.03997056833 | G197: 0.03997056833 | H197: 0.04050143755 | I197: -2.835315552 | J197: 0.0003737924491 | K197: 0.00518903997 | L197: 2.991953438e-08 | M197: 4.413901422e-09 | U197: 0.9025 | AG197: =(1-GAMMADIST(1/U197,AG$11,1/AG$12,TRUE))-(1-GAMMADIST(1/U196,AG$11,1/AG$12,TRUE)) -> 7.3055754e-05 | AI197: 0 | AK197: =(1-GAMMADIST((1/U197)^AK$10,AK$11,(1/AK$12)^AK$10,TRUE))-(1-GAMMADIST((1/U196)^AK$10,AK$11,(1/AK$12)^AK$10,TRUE)) -> 4.361623138e-06 | AM197: 2.411194412e-06
A198: 1968-06-14T15:00:00 | B198: 5.72 | C198: -0.15 | D198: 0.15 | E198: 0.1487517337 | F198: -0.02588582845 | G198: 0.02588582845 | H198: 0.02535495923 | I198: -2.861201381 | J198: 0.005364245559 | K198: 0.0306435517 | L198: 7.048148703e-10 | M198: 2.656914011e-10 | U198: 0.9075 | AG198: 7.219960534e-05 | AI198: 0 | AK198: 4.276871546e-06 | AM198: 2.364342e-06
A199: 1968-07-15T01:30:00 | B199: 5.5 | C199: -0.22 | D199: 0.22 | E199: 0.2187517337 | F199: -0.03922071315 | G199: 0.03922071315 | H199: 0.03868984393 | I199: -2.900422094 | J199: 0.06769087591 | K199: 0.1660938005 | L199: 6.850106351e-13 | M199: 3.354145262e-09 | U199: 0.9125 | AG199: 7.135807664e-05 | AI199: 0 | AK199: 4.194219298e-06 | AM199: 2.318650148e-06
A200: 1968-08-14T12:00:00 | B200: 5.42 | C200: -0.08 | D200: 0.08 | E200: 0.0787517337 | F200: -0.01465227679 | G200: 0.01465227679 | H200: 0.01412140757 | I200: -2.915074371 | J200: 0.1374592049 | K200: 0.2663478641 | L200: 1.930802534e-10 | M200: 7.929903925e-12 | U200: 0.9175 | AG200: 7.053084077e-05 | AI200: 0 | AK200: 4.113603311e-06 | AM200: 2.274083983e-06
... 553 more rows
